Workbook

Sheet TR135
A1: Indication of FFR results for Tender Round 135, accepted tenders will be officially notified via an issued acceptance letter.
D2: Company Name | E2: Tendered Unit (BMU/Unit ID) | F2: TO connection / DNO connection | G2: Generation Type | H2: Start Date | I2: End Date | J2: Tendered Period (dd.mm.yy - dd.mm.yy) | K2: Applicable FFR Capability Data Table | L2: Tendered Frames per Service Day | U2: Tendered Prices*** | X2: BMUs Only - Applicable Balancing Service (i.e. ABSVD Imbalance) YES/NO | Y2: Dynamic Providers Only | AC2: Dynamic Providers only | AJ2: Please indicate as per detail change provision if you are adding volume | AK2: Please state the accepted tender that you are stacking onto | AL2: Please state if this is an all or nothing bid. Clearly reference what lines are included in each all or nothing bid | AM2: Please indicate if this is a mutually exclusive tender | AN2: Non-Dynamic Providers | AP2: Comments
L3: Working Days (Mon-Fri) | O3: Saturdays | R3: Sundays/Bank Holidays | U3: Availability Fee (£/h) | V3: Nomination Fee (£/h) | W3: Window Initiation Fee (£/window) | Y3: Maximum Part Load Point (MW) | Z3: Minimum Part Load Point (MW) | AA3: Minimum MEL (MW) | AB3: Maximum SEL (MW) | AN3: Volume of Response Tendered
A4: Tender Ref | B4: Status | C4: Rejection Codes | L4: From | M4: To | N4: Duration (h) | O4: From | P4: To | Q4: Duration (h) | R4: From | S4: To | T4: Duration (h) | AC4: Primary Response (max.) @ 0.2Hz (MW) | AD4: Primary Response (max.) @ 0.5Hz (MW) | AE4: Primary Response (max.) @ 0.8Hz (MW) | AF4: Secondary Response (max.) @ 0.2/0.2Hz (MW) | AG4: Secondary Response (max.) @ 0.5/0.5Hz (MW) | AH4: High Frequency Response (max.) @ 0.2Hz (MW) | AI4: High Frequency Response (max.) @ 0.5Hz (MW) | AN4: Automatic Response Energy Deliverable by 10s (MW) | AO4: Automatic Response Energy Deliverable by 30s (MW)
A5: 135 | D5: Example Company | E5: Ex-FFR-1 | F5: TO connection | G5: Wind | H5: =#REF! ->  | I5: =#REF! ->  | J5: =IFERROR(TEXT(H5,"DD.MM.YY")&" - "&TEXT(I5,"DD.MM.YY")&" ("&DATEDIF(H5,I5+1,"m")&" months)","Tender End Date is Before Start Date") -> Tender End Date is Before Start Date | K5: As per FFR framework agreement | L5: 2300 | M5: 700 | N5: =IF(L5>M5, (2400-L5+M5)/100, IF(AND(L5="",M5="",L5=M5), "", IF(L5=M5,24,(M5-L5)/100))) -> 8 | O5: 2300 | P5: 700 | Q5: =IF(O5>P5, (2400-O5+P5)/100, IF(AND(O5="",P5="",O5=P5), "", IF(O5=P5,24,(P5-O5)/100))) -> 8 | R5: 2300 | S5: 700 | T5: =IF(R5>S5, (2400-R5+S5)/100, IF(AND(R5="",S5="",R5=S5), "", IF(R5=S5,24,(S5-R5)/100))) -> 8 | U5: 100 | V5: 600 | W5: - | X5: - | Y5: - | Z5: - | AA5: - | AB5: - | AC5: - | AD5: - | AE5: - | AF5: - | AG5: - | AH5: - | AI5: - | AJ5: - | AK5: - | AN5: - | AO5: - | AP5: -
A6: 135 | D6: Example Company | E6: =E5 -> Ex-FFR-1 | F6: DNO connection | G6: Gas | H6: =H5 ->  | I6: =I5 ->  | J6: =IFERROR(TEXT(H6,"DD.MM.YY")&" - "&TEXT(I6,"DD.MM.YY")&" ("&DATEDIF(H6,I6+1,"m")&" months)","Tender End Date is Before Start Date") -> Tender End Date is Before Start Date | K6: As per FFR framework agreement | L6: 700 | M6: 2300 | N6: 16 | O6: 700 | P6: 2300 | Q6: 16 | R6: 700 | S6: 2300 | T6: 16 | U6: 600 | V6: 100 | W6: - | X6: - | Y6: - | Z6: - | AA6: - | AB6: - | AC6: - | AD6: - | AE6: - | AF6: - | AG6: - | AH6: - | AI6: - | AJ6: - | AK6: - | AN6: - | AO6: - | AP6: -
A7: =A5+0.001 -> 135.001 | B7: Accepted | C7: NA | D7: REstore Flexpond UK Ltd | E7: REST-1 | F7: DNO connection | G7: Multiple Fuel Type | H7: 2021-03-31 | I7: 2021-04-30 | J7: 31.03.21 - 30.04.21 (1 months) | K7: as per FFR framework agreement | L7: 2300 | M7: 700 | N7: =IF(L7>M7, (2400-L7+M7)/100, IF(AND(L7="",M7="",L7=M7), "", IF(L7=M7,24,(M7-L7)/100))) -> 8 | O7: 2300 | P7: 700 | Q7: =IF(O7>P7, (2400-O7+P7)/100, IF(AND(O7="",P7="",O7=P7), "", IF(O7=P7,24,(P7-O7)/100))) -> 8 | R7: 2300 | S7: 700 | T7: =IF(R7>S7, (2400-R7+S7)/100, IF(AND(R7="",S7="",R7=S7), "", IF(R7=S7,24,(S7-R7)/100))) -> 8 | U7: 167.84 | AC7: 6.4 | AD7: 16 | AE7: 16 | AF7: 6.4 | AG7: 16 | AH7: 6.4 | AI7: 16
A8: =A7+0.001 -> 135.002 | B8: Accepted | C8: NA | D8: REstore Flexpond UK Ltd | E8: REST-1 | F8: DNO connection | G8: Multiple Fuel Type | H8: 2021-04-01 | I8: 2021-04-30 | J8: 01.04.21 - 30.04.21 (1 months) | K8: as per FFR framework agreement | L8: 700 | M8: 1500 | N8: =IF(L8>M8, (2400-L8+M8)/100, IF(AND(L8="",M8="",L8=M8), "", IF(L8=M8,24,(M8-L8)/100))) -> 8 | O8: 700 | P8: 1500 | Q8: =IF(O8>P8, (2400-O8+P8)/100, IF(AND(O8="",P8="",O8=P8), "", IF(O8=P8,24,(P8-O8)/100))) -> 8 | R8: 700 | S8: 1500 | T8: =IF(R8>S8, (2400-R8+S8)/100, IF(AND(R8="",S8="",R8=S8), "", IF(R8=S8,24,(S8-R8)/100))) -> 8 | U8: 180 | AC8: 6.4 | AD8: 16 | AE8: 16 | AF8: 6.4 | AG8: 16 | AH8: 6.4 | AI8: 16
A9: 135.003 | B9: Rejected | C9: 2 | D9: REstore Flexpond UK Ltd | E9: REST-1 | F9: DNO connection | G9: Multiple Fuel Type | H9: 2021-04-01 | I9: 2021-04-30 | J9: 01.04.21 - 30.04.21 (1 months) | K9: as per FFR framework agreement | L9: 1500 | M9: 2300 | N9: 8 | O9: 1500 | P9: 2300 | Q9: 8 | R9: 1500 | S9: 2300 | T9: 8 | U9: 217.44 | AC9: 6.4 | AD9: 16 | AE9: 16 | AF9: 6.4 | AG9: 16 | AH9: 6.4 | AI9: 16
A10: 135.004 | B10: Accepted | C10: NA | D10: Centrica Business Solutions Optimisation UK Ltd | E10: CBS0-1 | F10: DNO connection | G10: DSF: Distributed generation (onsite) | H10: 2021-04-01 | I10: 2021-04-30 | J10: 01.04.21 - 30.04.21 (1 months) | K10: As per FFR framework agreement | L10: 700 | M10: 2300 | N10: 16 | O10: 700 | P10: 2300 | Q10: 16 | R10: 700 | S10: 2300 | T10: 16 | U10: 3.98 | AO10: 2 | AP10: 2MW Static
A11: 135.005 | B11: Rejected | C11: 1.2 | D11: City Energy Management Services Ltd. | E11: CMFH-1 | F11: DNO connection | G11: DSF: Load response | H11: 2021-04-01 | I11: 2021-04-30 | J11: 01.04.21 - 30.04.21 (1 months) | K11: As per FFR framework agreement | L11: 700 | M11: 1500 | N11: =IF(L11>M11, (2400-L11+M11)/100, IF(AND(L11="",M11="",L11=M11), "", IF(L11=M11,24,(M11-L11)/100))) -> 8 | O11: 700 | P11: 1500 | Q11: =IF(O11>P11, (2400-O11+P11)/100, IF(AND(O11="",P11="",O11=P11), "", IF(O11=P11,24,(P11-O11)/100))) -> 8 | R11: 700 | S11: 1500 | T11: =IF(R11>S11, (2400-R11+S11)/100, IF(AND(R11="",S11="",R11=S11), "", IF(R11=S11,24,(S11-R11)/100))) -> 8 | U11: 1.45 | AO11: 1
A12: 135.006 | B12: Accepted | C12: NA | D12: City Energy Management Services Ltd. | E12: CMFH-1 | F12: DNO connection | G12: DSF: Load response | H12: 2021-04-01 | I12: 2021-04-30 | J12: 01.04.21 - 30.04.21 (1 months) | K12: As per FFR framework agreement | L12: 1900 | M12: 2300 | N12: =IF(L12>M12, (2400-L12+M12)/100, IF(AND(L12="",M12="",L12=M12), "", IF(L12=M12,24,(M12-L12)/100))) -> 4 | O12: 1900 | P12: 2300 | Q12: =IF(O12>P12, (2400-O12+P12)/100, IF(AND(O12="",P12="",O12=P12), "", IF(O12=P12,24,(P12-O12)/100))) -> 4 | R12: 1900 | S12: 2300 | T12: =IF(R12>S12, (2400-R12+S12)/100, IF(AND(R12="",S12="",R12=S12), "", IF(R12=S12,24,(S12-R12)/100))) -> 4 | U12: 1.45 | AO12: 1
A13: 135.007 | B13: Rejected | C13: 1.2 | D13: City Energy Management Services Ltd. | E13: CMFH-2 | F13: DNO connection | G13: DSF: Load response | H13: 2021-04-01 | I13: 2021-04-30 | J13: 01.04.21 - 30.04.21 (1 months) | K13: As per FFR framework agreement | L13: 700 | M13: 1500 | N13: 8 | O13: 700 | P13: 1500 | Q13: 8 | R13: 700 | S13: 1500 | T13: 8 | U13: 1.85 | AO13: 1
A14: 135.008 | B14: Rejected | C14: 1.2 | D14: City Energy Management Services Ltd. | E14: CMFH-2 | F14: DNO connection | G14: DSF: Load response | H14: 2021-04-01 | I14: 2021-04-30 | J14: 01.04.21 - 30.04.21 (1 months) | K14: As per FFR framework agreement | L14: 1900 | M14: 2300 | N14: 4 | O14: 1900 | P14: 2300 | Q14: 4 | R14: 1900 | S14: 2300 | T14: 4 | U14: 1.85 | AO14: 1
A15: 135.009 | B15: Rejected | C15: 1.2 | D15: City Energy Management Services Ltd. | E15: CMFH-1 | F15: DNO connection | G15: DSF: Load response | H15: 2021-04-01 | I15: 2021-04-30 | J15: 01.04.21 - 30.04.21 (1 months) | K15: As per FFR framework agreement | O15: 1500 | P15: 1900 | Q15: 4 | R15: 1500 | S15: 1900 | T15: 4 | U15: 2.55 | AO15: 1
A16: 135.01 | B16: Rejected | C16: 1.2 | D16: City Energy Management Services Ltd. | E16: CMFH-2 | F16: DNO connection | G16: DSF: Load response | H16: 2021-04-01 | I16: 2021-04-30 | J16: 01.04.21 - 30.04.21 (1 months) | K16: As per FFR framework agreement | O16: 1500 | P16: 1900 | Q16: 4 | R16: 1500 | S16: 1900 | T16: 4 | U16: 2.55 | AO16: 1
A17: 135.011 | B17: Accepted | C17: NA | D17: Drax Power Limited | E17: DRAX_01Z | F17: TO connection | G17: Bio Fuel | H17: 2021-03-31 | I17: 2021-04-30 | J17: 31.03.21 - 30.04.21 (1 months) | K17: As per FFR framework agreement | L17: 2300 | M17: 2300 | N17: =IF(L17>M17, (2400-L17+M17)/100, IF(AND(L17="",M17="",L17=M17), "", IF(L17=M17,24,(M17-L17)/100))) -> 24 | O17: 2300 | P17: 2300 | Q17: =IF(O17>P17, (2400-O17+P17)/100, IF(AND(O17="",P17="",O17=P17), "", IF(O17=P17,24,(P17-O17)/100))) -> 24 | R17: 2300 | S17: 2300 | T17: =IF(R17>S17, (2400-R17+S17)/100, IF(AND(R17="",S17="",R17=S17), "", IF(R17=S17,24,(S17-R17)/100))) -> 24 | U17: 194 | V17: 0 | X17: YES | Y17: 660 | Z17: 420 | AA17: 420 | AB17: 300 | AC17: 0 | AD17: 0 | AE17: 0 | AF17: 0 | AG17: 0 | AH17: 24 | AI17: 68 | AJ17: No | AK17: n/a | AM17: n/a
A18: 135.012 | B18: Rejected | C18: 2 | D18: EDF Energy Customers Limited | E18: AG-AEDF01 | F18: DNO connection | G18: DSF: Storage (for export) | H18: 2021-03-31 | I18: 2021-04-30 | J18: 31.03.21 - 30.04.21 (1 months) | K18: As per FFR framework agreement | L18: 2300 | M18: 2300 | N18: =IF(L18>M18, (2400-L18+M18)/100, IF(AND(L18="",M18="",L18=M18), "", IF(L18=M18,24,(M18-L18)/100))) -> 24 | O18: 2300 | P18: 2300 | Q18: =IF(O18>P18, (2400-O18+P18)/100, IF(AND(O18="",P18="",O18=P18), "", IF(O18=P18,24,(P18-O18)/100))) -> 24 | R18: 2300 | S18: 2300 | T18: =IF(R18>S18, (2400-R18+S18)/100, IF(AND(R18="",S18="",R18=S18), "", IF(R18=S18,24,(S18-R18)/100))) -> 24 | U18: 114 | AC18: 2.4 | AD18: 6 | AE18: 6 | AF18: 2.4 | AG18: 6 | AH18: 2.4 | AI18: 6
A19: 135.013 | B19: Rejected | C19: 2 | D19: EDF Energy Customers Limited | E19: AG -GEDF01 | F19: DNO connection | G19: DSF: Storage (for export) | H19: 2021-03-31 | I19: 2021-04-30 | J19: 31.03.21 - 30.04.21 (1 months) | K19: As per FFR framework agreement | L19: 2300 | M19: 2300 | N19: =IF(L19>M19, (2400-L19+M19)/100, IF(AND(L19="",M19="",L19=M19), "", IF(L19=M19,24,(M19-L19)/100))) -> 24 | O19: 2300 | P19: 2300 | Q19: =IF(O19>P19, (2400-O19+P19)/100, IF(AND(O19="",P19="",O19=P19), "", IF(O19=P19,24,(P19-O19)/100))) -> 24 | R19: 2300 | S19: 2300 | T19: =IF(R19>S19, (2400-R19+S19)/100, IF(AND(R19="",S19="",R19=S19), "", IF(R19=S19,24,(S19-R19)/100))) -> 24 | U19: 381 | AC19: 8 | AD19: 20 | AE19: 20 | AF19: 8 | AG19: 20 | AH19: 8 | AI19: 20
A20: 135.014 | B20: Rejected | C20: 2 | D20: EDF Energy Customers Limited | E20: AG -GEDF02 | F20: DNO connection | G20: DSF: Storage (for export) | H20: 2021-03-31 | I20: 2021-04-30 | J20: 31.03.21 - 30.04.21 (1 months) | K20: As per FFR framework agreement | L20: 2300 | M20: 2300 | N20: 24 | O20: 2300 | P20: 2300 | Q20: 24 | R20: 2300 | S20: 2300 | T20: 24 | U20: 382 | AC20: 8 | AD20: 20 | AE20: 20 | AF20: 8 | AG20: 20 | AH20: 8 | AI20: 20
A21: 135.015 | B21: Rejected | C21: 2 | D21: EDF Energy Customers Limited | E21: EDFE-2 | F21: DNO connection | G21: DSF: Storage (for export) | H21: 2021-03-31 | I21: 2021-04-30 | J21: 31.03.21 - 30.04.21 (1 months) | K21: As per FFR framework agreement | L21: 2300 | M21: 2300 | N21: 24 | O21: 2300 | P21: 2300 | Q21: 24 | R21: 2300 | S21: 2300 | T21: 24 | U21: 102.64 | AC21: 3.2 | AD21: 8 | AE21: 8 | AF21: 3.2 | AG21: 8 | AH21: 3.2 | AI21: 8
A22: 135.016 | B22: Rejected | C22: 2 | D22: EDF Energy Customers Limited | E22: EDFE-6 | F22: DNO connection | G22: DSF: Storage (for export) | H22: 2021-03-31 | I22: 2021-04-30 | J22: 31.03.21 - 30.04.21 (1 months) | K22: As per FFR framework agreement | L22: 2300 | M22: 2300 | N22: 24 | O22: 2300 | P22: 2300 | Q22: 24 | R22: 2300 | S22: 2300 | T22: 24 | U22: 89.95 | AC22: 2.8 | AD22: 7 | AE22: 7 | AF22: 2.8 | AG22: 7 | AH22: 2.8 | AI22: 7
A23: 135.017 | B23: Rejected | C23: 2 | D23: EDF Energy Customers Limited | E23: EDFE-7 | F23: DNO connection | G23: DSF: Storage (for export) | H23: 2021-03-31 | I23: 2021-04-30 | J23: 31.03.21 - 30.04.21 (1 months) | K23: As per FFR framework agreement | L23: 2300 | M23: 2300 | N23: 24 | O23: 2300 | P23: 2300 | Q23: 24 | R23: 2300 | S23: 2300 | T23: 24 | U23: 940.31 | AC23: 19.6 | AD23: 49 | AE23: 49 | AF23: 19.6 | AG23: 49 | AH23: 15.6 | AI23: 39
A24: 135.018 | B24: Rejected | C24: 2 | D24: EDF Energy Customers Limited | E24: EDFE-8 | F24: DNO connection | G24: DSF: Storage (for export) | H24: 2021-03-31 | I24: 2021-04-30 | J24: 31.03.21 - 30.04.21 (1 months) | K24: As per FFR framework agreement | L24: 2300 | M24: 700 | N24: 8 | O24: 2300 | P24: 700 | Q24: 8 | R24: 2300 | S24: 700 | T24: 8 | U24: 249 | AC24: 8 | AD24: 20 | AE24: 20 | AF24: 8 | AG24: 20 | AH24: 8 | AI24: 20 | AL24: A
A25: 135.019 | B25: Rejected | C25: 2 | D25: EDF Energy Customers Limited | E25: EDFE-8 | F25: DNO connection | G25: DSF: Storage (for export) | H25: 2021-04-01 | I25: 2021-04-30 | J25: 01.04.21 - 30.04.21 (1 months) | K25: As per FFR framework agreement | L25: 700 | M25: 1500 | N25: 8 | O25: 700 | P25: 1500 | Q25: 8 | R25: 700 | S25: 1500 | T25: 8 | U25: 249 | AC25: 8 | AD25: 20 | AE25: 20 | AF25: 8 | AG25: 20 | AH25: 8 | AI25: 20 | AL25: A
A26: 135.02 | B26: Rejected | C26: 2 | D26: EDF Energy Customers Limited | E26: EDFE-8 | F26: DNO connection | G26: DSF: Storage (for export) | H26: 2021-04-01 | I26: 2021-04-30 | J26: 01.04.21 - 30.04.21 (1 months) | K26: As per FFR framework agreement | L26: 1500 | M26: 2300 | N26: 8 | O26: 1500 | P26: 2300 | Q26: 8 | R26: 1500 | S26: 2300 | T26: 8 | U26: 330 | AC26: 8 | AD26: 20 | AE26: 20 | AF26: 8 | AG26: 20 | AH26: 8 | AI26: 20 | AL26: A
A27: =A26+0.001 -> 135.021 | B27: Rejected | C27: 1.2 | D27: First Renewable Alpha Limited | E27: TREGN-1 | F27: DNO connection | G27: Diesel | H27: 2021-04-01 | I27: 2021-04-30 | J27: 01.04.21 - 30.04.21 (1 months) | K27: As per FFR framework agreement | L27: 700 | M27: 1500 | N27: =IF(L27>M27, (2400-L27+M27)/100, IF(AND(L27="",M27="",L27=M27), "", IF(L27=M27,24,(M27-L27)/100))) -> 8 | O27: 700 | P27: 1500 | Q27: =IF(O27>P27, (2400-O27+P27)/100, IF(AND(O27="",P27="",O27=P27), "", IF(O27=P27,24,(P27-O27)/100))) -> 8 | R27: 700 | S27: 1500 | T27: =IF(R27>S27, (2400-R27+S27)/100, IF(AND(R27="",S27="",R27=S27), "", IF(R27=S27,24,(S27-R27)/100))) -> 8 | U27: 35 | AO27: 20
A28: =A27+0.001 -> 135.022 | B28: Rejected | C28: 1.2 | D28: First Renewable Alpha Limited | E28: TREGN-1 | F28: DNO connection | G28: Diesel | H28: 2021-04-01 | I28: 2021-04-30 | J28: 01.04.21 - 30.04.21 (1 months) | K28: As per FFR framework agreement | L28: 1500 | M28: 2300 | N28: =IF(L28>M28, (2400-L28+M28)/100, IF(AND(L28="",M28="",L28=M28), "", IF(L28=M28,24,(M28-L28)/100))) -> 8 | O28: 1500 | P28: 2300 | Q28: =IF(O28>P28, (2400-O28+P28)/100, IF(AND(O28="",P28="",O28=P28), "", IF(O28=P28,24,(P28-O28)/100))) -> 8 | R28: 1500 | S28: 2300 | T28: =IF(R28>S28, (2400-R28+S28)/100, IF(AND(R28="",S28="",R28=S28), "", IF(R28=S28,24,(S28-R28)/100))) -> 8 | U28: 30 | AO28: 20
A29: =A28+0.001 -> 135.023 | B29: Rejected | C29: 2 | D29: Flexitricity Limited | E29: AG-EFLX01 | F29: DNO connection | G29: DSF: Storage (for export) | H29: 2021-03-31 | I29: 2021-04-30 | J29: 31.03.21 - 30.04.21 (1 months) | K29: As per FFR framework agreement | L29: 2300 | M29: 2300 | N29: =IF(L29>M29, (2400-L29+M29)/100, IF(AND(L29="",M29="",L29=M29), "", IF(L29=M29,24,(M29-L29)/100))) -> 24 | O29: 2300 | P29: 2300 | Q29: =IF(O29>P29, (2400-O29+P29)/100, IF(AND(O29="",P29="",O29=P29), "", IF(O29=P29,24,(P29-O29)/100))) -> 24 | R29: 2300 | S29: 2300 | T29: =IF(R29>S29, (2400-R29+S29)/100, IF(AND(R29="",S29="",R29=S29), "", IF(R29=S29,24,(S29-R29)/100))) -> 24 | U29: 386.65 | V29: 0 | X29: YES | AC29: 7.6 | AD29: 19 | AE29: 19 | AF29: 7.6 | AG29: 19 | AH29: 7.6 | AI29: 19
A30: =A29+0.001 -> 135.024 | B30: Rejected | C30: 2 | D30: Flexitricity Limited | E30: AG-BFLX01 | F30: DNO connection | G30: DSF: Storage (for export) | H30: 2021-03-31 | I30: 2021-04-30 | J30: 31.03.21 - 30.04.21 (1 months) | K30: As per FFR framework agreement | L30: 2300 | M30: 2300 | N30: =IF(L30>M30, (2400-L30+M30)/100, IF(AND(L30="",M30="",L30=M30), "", IF(L30=M30,24,(M30-L30)/100))) -> 24 | O30: 2300 | P30: 2300 | Q30: =IF(O30>P30, (2400-O30+P30)/100, IF(AND(O30="",P30="",O30=P30), "", IF(O30=P30,24,(P30-O30)/100))) -> 24 | R30: 2300 | S30: 2300 | T30: =IF(R30>S30, (2400-R30+S30)/100, IF(AND(R30="",S30="",R30=S30), "", IF(R30=S30,24,(S30-R30)/100))) -> 24 | U30: 143.43 | V30: 0 | X30: YES | AC30: 2.8 | AD30: 7 | AE30: 7 | AF30: 2.8 | AG30: 7 | AH30: 2.8 | AI30: 7
A31: =A30+0.001 -> 135.025 | B31: Rejected | C31: 2 | D31: Flexitricity Limited | E31: AG-MFLX02 | F31: DNO connection | G31: DSF: Storage (for export) | H31: 2021-03-31 | I31: 2021-04-30 | J31: 31.03.21 - 30.04.21 (1 months) | K31: As per FFR framework agreement | L31: 2300 | M31: 2300 | N31: 24 | O31: 2300 | P31: 2300 | Q31: 24 | R31: 2300 | S31: 2300 | T31: 24 | U31: 979.02 | V31: 0 | X31: YES | AC31: 19.96 | AD31: 49 | AE31: 49 | AF31: 19.96 | AG31: 49 | AH31: 19.96 | AI31: 49
A32: 135.026 | B32: Rejected | C32: 2 | D32: Flexitricity Limited | E32: AG-FLX00L | F32: DNO connection | G32: DSF: Storage (for export) | H32: 2021-03-31 | I32: 2021-04-30 | J32: 31.03.21 - 30.04.21 (1 months) | K32: As per FFR framework agreement | L32: 2300 | M32: 2300 | N32: 24 | O32: 2300 | P32: 2300 | Q32: 24 | R32: 2300 | S32: 2300 | T32: 24 | U32: 83.56 | V32: 0 | X32: YES | AC32: 1.6 | AD32: 4 | AE32: 4 | AF32: 1.6 | AG32: 4 | AH32: 1.6 | AI32: 4
A33: 135.027 | B33: Rejected | C33: 2 | D33: GridBeyond Limited | E33: GBND-2 | F33: DNO connection | G33: DSF: Load response | H33: 2021-03-31 | I33: 2021-04-30 | J33: 31.03.21 - 30.04.21 (1 months) | K33: As per FFR framework agreement | L33: 2300 | M33: 700 | N33: 8 | U33: 261.45 | AC33: 10 | AD33: 25 | AE33: 25 | AF33: 10 | AG33: 25 | AH33: 5.2 | AI33: 13 | AL33: A
A34: 135.028 | B34: Rejected | C34: 2 | D34: GridBeyond Limited | E34: GBND-2 | F34: DNO connection | G34: DSF: Load response | H34: 2021-04-01 | I34: 2021-04-30 | J34: 01.04.21 - 30.04.21 (1 months) | K34: As per FFR framework agreement | L34: 700 | M34: 1500 | N34: 8 | U34: 294.8 | AC34: 10.8 | AD34: 27 | AE34: 27 | AF34: 10.8 | AG34: 27 | AH34: 5.2 | AI34: 13 | AL34: B
A35: 135.029 | B35: Rejected | C35: 2 | D35: GridBeyond Limited | E35: GBND-2 | F35: DNO connection | G35: DSF: Load response | H35: 2021-04-01 | I35: 2021-04-30 | J35: 01.04.21 - 30.04.21 (1 months) | K35: As per FFR framework agreement | L35: 1500 | M35: 2300 | N35: 8 | U35: 254.49 | AC35: 7.6 | AD35: 19 | AE35: 19 | AF35: 7.6 | AG35: 19 | AH35: 5.2 | AI35: 13 | AL35: C
A36: 135.03 | B36: Rejected | C36: 2 | D36: GridBeyond Limited | E36: GBND-2 | F36: DNO connection | G36: DSF: Load response | H36: 2021-03-31 | I36: 2021-04-30 | J36: 31.03.21 - 30.04.21 (1 months) | K36: As per FFR framework agreement | O36: 2300 | P36: 700 | Q36: 8 | U36: 153.55 | AC36: 4.8 | AD36: 12 | AE36: 12 | AF36: 4.8 | AG36: 12 | AH36: 5.2 | AI36: 13 | AL36: A
A37: 135.031 | B37: Rejected | C37: 2 | D37: GridBeyond Limited | E37: GBND-2 | F37: DNO connection | G37: DSF: Load response | H37: 2021-04-01 | I37: 2021-04-30 | J37: 01.04.21 - 30.04.21 (1 months) | K37: As per FFR framework agreement | O37: 700 | P37: 1500 | Q37: 8 | U37: 136.4 | AC37: 3.6 | AD37: 9 | AE37: 9 | AF37: 3.6 | AG37: 9 | AH37: 5.2 | AI37: 13 | AL37: B
A38: 135.032 | B38: Rejected | C38: 2 | D38: GridBeyond Limited | E38: GBND-2 | F38: DNO connection | G38: DSF: Load response | H38: 2021-04-01 | I38: 2021-04-30 | J38: 01.04.21 - 30.04.21 (1 months) | K38: As per FFR framework agreement | O38: 1500 | P38: 2300 | Q38: 8 | U38: 154.69 | AC38: 3.6 | AD38: 9 | AE38: 9 | AF38: 3.6 | AG38: 9 | AH38: 5.2 | AI38: 13 | AL38: C
A39: 135.033 | B39: Rejected | C39: 2 | D39: GridBeyond Limited | E39: GBND-2 | F39: DNO connection | G39: DSF: Load response | H39: 2021-03-31 | I39: 2021-04-30 | J39: 31.03.21 - 30.04.21 (1 months) | K39: As per FFR framework agreement | R39: 2300 | S39: 700 | T39: 8 | U39: 103.75 | AC39: 2.8 | AD39: 7 | AE39: 7 | AF39: 2.8 | AG39: 7 | AH39: 4.4 | AI39: 11 | AL39: A
A40: 135.034 | B40: Rejected | C40: 2 | D40: GridBeyond Limited | E40: GBND-2 | F40: DNO connection | G40: DSF: Load response | H40: 2021-04-01 | I40: 2021-04-30 | J40: 01.04.21 - 30.04.21 (1 months) | K40: As per FFR framework agreement | R40: 700 | S40: 1500 | T40: 8 | U40: 110 | AC40: 2.8 | AD40: 7 | AE40: 7 | AF40: 2.8 | AG40: 7 | AH40: 4.4 | AI40: 11 | AL40: B
A41: 135.035 | B41: Rejected | C41: 2 | D41: GridBeyond Limited | E41: GBND-2 | F41: DNO connection | G41: DSF: Load response | H41: 2021-04-01 | I41: 2021-04-30 | J41: 01.04.21 - 30.04.21 (1 months) | K41: As per FFR framework agreement | R41: 1500 | S41: 2300 | T41: 8 | U41: 124.75 | AC41: 2.8 | AD41: 7 | AE41: 7 | AF41: 2.8 | AG41: 7 | AH41: 4.4 | AI41: 11 | AL41: C
A42: 135.036 | B42: Rejected | C42: 2 | D42: Habitat Energy Limited | E42: HAB2-FFR | F42: DNO connection | G42: DSF: Storage (for export) | H42: 2021-03-31 | I42: 2021-04-30 | J42: 31.03.21 - 30.04.21 (1 months) | K42: As per FFR framework agreement | L42: 2300 | M42: 2300 | N42: 24 | O42: 2300 | P42: 2300 | Q42: 24 | R42: 2300 | S42: 2300 | T42: 24 | U42: 64.35 | V42: 0 | W42: - | X42: - | AC42: 2 | AD42: 5 | AE42: 5 | AF42: 2 | AG42: 5 | AH42: 2 | AI42: 5
A43: 135.037 | B43: Rejected | C43: 2 | D43: Habitat Energy Limited | E43: HAB3-FFR | F43: DNO connection | G43: DSF: Storage (for export) | H43: 2021-03-31 | I43: 2021-04-30 | J43: 31.03.21 - 30.04.21 (1 months) | K43: As per FFR framework agreement | L43: 2300 | M43: 2300 | N43: 24 | O43: 2300 | P43: 2300 | Q43: 24 | R43: 2300 | S43: 2300 | T43: 24 | U43: 284.85 | V43: 0 | W43: - | X43: - | AC43: 6 | AD43: 15 | AE43: 15 | AF43: 6 | AG43: 15 | AH43: 6 | AI43: 15
A44: 135.038 | B44: Rejected | C44: 2 | D44: Habitat Energy Limited | E44: AG-HEL00G | F44: DNO connection | G44: DSF: Storage (for export) | H44: 2021-03-31 | I44: 2021-04-30 | J44: 31.03.21 - 30.04.21 (1 months) | K44: As per FFR framework agreement | L44: 2300 | M44: 2300 | N44: 24 | O44: 2300 | P44: 2300 | Q44: 24 | R44: 2300 | S44: 2300 | T44: 24 | U44: 931.49 | V44: 0 | W44: - | X44: Yes | AC44: 19.6 | AD44: 49 | AE44: 49 | AF44: 19.6 | AG44: 49 | AH44: 19.6 | AI44: 49
A45: 135.039 | B45: Rejected | C45: 2 | D45: Habitat Energy Limited | E45: AG-HEL01H | F45: DNO connection | G45: DSF: Storage (for export) | H45: 2021-03-31 | I45: 2021-04-30 | J45: =IFERROR(TEXT(H45,"DD.MM.YY")&" - "&TEXT(I45,"DD.MM.YY")&" ("&DATEDIF(H45,I45+1,"m")&" months)","Tender End Date is Before Start Date") -> 31.03.21 - 30.04.21 (1 months) | K45: As per FFR framework agreement | L45: 2300 | M45: 2300 | N45: 24 | O45: 2300 | P45: 2300 | Q45: 24 | R45: 2300 | S45: 2300 | T45: 24 | U45: 389.8 | V45: 0 | W45: - | X45: Yes | AC45: 8 | AD45: 20 | AE45: 20 | AF45: 8 | AG45: 20 | AH45: 6.4 | AI45: 16
A46: 135.04 | B46: Rejected | C46: 2 | D46: Kiwi Power Ltd | E46: KIWIDA-1 | F46: DNO connection | G46: DSF: Storage (onsite) | H46: 2021-03-31 | I46: 2021-04-30 | J46: =IFERROR(TEXT(H46,"DD.MM.YY")&" - "&TEXT(I46,"DD.MM.YY")&" ("&DATEDIF(H46,I46+1,"m")&" months)","Tender End Date is Before Start Date") -> 31.03.21 - 30.04.21 (1 months) | K46: As per FFR framework agreement | L46: 2300 | M46: 2300 | N46: 24 | O46: 2300 | P46: 2300 | Q46: 24 | R46: 2300 | S46: 2300 | T46: 24 | U46: 30 | AC46: 0.8 | AD46: 2 | AE46: 2 | AF46: 0.8 | AG46: 2 | AH46: 0.8 | AI46: 2
A47: 135.041 | B47: Accepted | C47: NA | D47: Kiwi Power Ltd | E47: KIWIE-5 | F47: DNO connection | G47: DSF: Storage (onsite) | H47: 2021-03-31 | I47: 2021-04-30 | J47: =IFERROR(TEXT(H47,"DD.MM.YY")&" - "&TEXT(I47,"DD.MM.YY")&" ("&DATEDIF(H47,I47+1,"m")&" months)","Tender End Date is Before Start Date") -> 31.03.21 - 30.04.21 (1 months) | K47: As per FFR framework agreement | L47: 2300 | M47: 2300 | N47: 24 | O47: 2300 | P47: 2300 | Q47: 24 | R47: 2300 | S47: 2300 | T47: 24 | U47: 48 | AC47: 1.6 | AD47: 4 | AE47: 4 | AF47: 1.6 | AG47: 4 | AH47: 1.6 | AI47: 4
A48: 135.042 | B48: Accepted | C48: NA | D48: Limejump Energy Ltd | E48: AG-FLIM01 | F48: TO connection | G48: DSF: Storage (for export) | H48: 2021-03-31 | I48: 2021-04-30 | J48: =IFERROR(TEXT(H48,"DD.MM.YY")&" - "&TEXT(I48,"DD.MM.YY")&" ("&DATEDIF(H48,I48+1,"m")&" months)","Tender End Date is Before Start Date") -> 31.03.21 - 30.04.21 (1 months) | K48: As per FFR framework agreement | L48: 2300 | M48: 700 | N48: =IF(L48>M48, (2400-L48+M48)/100, IF(AND(L48="",M48="",L48=M48), "", IF(L48=M48,24,(M48-L48)/100))) -> 8 | O48: 2300 | P48: 700 | Q48: =IF(O48>P48, (2400-O48+P48)/100, IF(AND(O48="",P48="",O48=P48), "", IF(O48=P48,24,(P48-O48)/100))) -> 8 | R48: 2300 | S48: 700 | T48: =IF(R48>S48, (2400-R48+S48)/100, IF(AND(R48="",S48="",R48=S48), "", IF(R48=S48,24,(S48-R48)/100))) -> 8 | U48: 85.33 | AC48: 2.8 | AD48: 7 | AE48: 7 | AF48: 2.8 | AG48: 7 | AH48: 2.8 | AI48: 7 | AP48: H for 30 minutes only
A49: 135.043 | B49: Rejected | C49: 2 | D49: Limejump Energy Ltd | E49: AG-FLIM01 | F49: TO connection | G49: DSF: Storage (for export) | H49: 2021-04-01 | I49: 2021-04-30 | J49: 01.04.21 - 30.04.21 (1 months) | K49: As per FFR framework agreement | L49: 700 | M49: 1500 | N49: =IF(L49>M49, (2400-L49+M49)/100, IF(AND(L49="",M49="",L49=M49), "", IF(L49=M49,24,(M49-L49)/100))) -> 8 | O49: 700 | P49: 1500 | Q49: =IF(O49>P49, (2400-O49+P49)/100, IF(AND(O49="",P49="",O49=P49), "", IF(O49=P49,24,(P49-O49)/100))) -> 8 | R49: 700 | S49: 1500 | T49: =IF(R49>S49, (2400-R49+S49)/100, IF(AND(R49="",S49="",R49=S49), "", IF(R49=S49,24,(S49-R49)/100))) -> 8 | U49: 93.31 | AC49: 2.8 | AD49: 7 | AE49: 7 | AF49: 2.8 | AG49: 7 | AH49: 2.8 | AI49: 7 | AP49: H for 30 minutes only
A50: 135.044 | B50: Rejected | C50: 2 | D50: Limejump Energy Ltd | E50: AG-FLIM01 | F50: TO connection | G50: DSF: Storage (for export) | H50: 2021-04-01 | I50: 2021-04-30 | J50: =IFERROR(TEXT(H50,"DD.MM.YY")&" - "&TEXT(I50,"DD.MM.YY")&" ("&DATEDIF(H50,I50+1,"m")&" months)","Tender End Date is Before Start Date") -> 01.04.21 - 30.04.21 (1 months) | K50: As per FFR framework agreement | L50: 1500 | M50: 2300 | N50: 8 | O50: 1500 | P50: 2300 | Q50: 8 | R50: 1500 | S50: 2300 | T50: 8 | U50: 109.13 | AC50: 2.8 | AD50: 7 | AE50: 7 | AF50: 2.8 | AG50: 7 | AH50: 2.8 | AI50: 7 | AP50: H for 30 minutes only
A51: 135.045 | B51: Accepted | C51: NA | D51: Limejump Energy Ltd | E51: AG-GLIM01 | F51: TO connection | G51: DSF: Storage (for export) | H51: 2021-03-31 | I51: 2021-04-30 | J51: =IFERROR(TEXT(H51,"DD.MM.YY")&" - "&TEXT(I51,"DD.MM.YY")&" ("&DATEDIF(H51,I51+1,"m")&" months)","Tender End Date is Before Start Date") -> 31.03.21 - 30.04.21 (1 months) | K51: As per FFR framework agreement | L51: 2300 | M51: 700 | N51: 8 | O51: 2300 | P51: 700 | Q51: 8 | R51: 2300 | S51: 700 | T51: 8 | U51: 22.82 | AC51: 0.8 | AD51: 2 | AE51: 2 | AF51: 0.8 | AG51: 2 | AH51: 0.8 | AI51: 2 | AP51: H for 30 minutes only
A52: 135.046 | B52: Accepted | C52: NA | D52: Limejump Energy Ltd | E52: AG-GLIM01 | F52: TO connection | G52: DSF: Storage (for export) | H52: 2021-04-01 | I52: 2021-04-30 | J52: 01.04.21 - 30.04.21 (1 months) | K52: As per FFR framework agreement | L52: 700 | M52: 1500 | N52: 8 | O52: 700 | P52: 1500 | Q52: 8 | R52: 700 | S52: 1500 | T52: 8 | U52: 24.78 | AC52: 0.8 | AD52: 2 | AE52: 2 | AF52: 0.8 | AG52: 2 | AH52: 0.8 | AI52: 2 | AP52: H for 30 minutes only
A53: 135.047 | B53: Rejected | C53: 2 | D53: Limejump Energy Ltd | E53: AG-GLIM01 | F53: TO connection | G53: DSF: Storage (for export) | H53: 2021-04-01 | I53: 2021-04-30 | J53: 01.04.21 - 30.04.21 (1 months) | K53: As per FFR framework agreement | L53: 1500 | M53: 2300 | N53: 8 | O53: 1500 | P53: 2300 | Q53: 8 | R53: 1500 | S53: 2300 | T53: 8 | U53: 29.58 | AC53: 0.8 | AD53: 2 | AE53: 2 | AF53: 0.8 | AG53: 2 | AH53: 0.8 | AI53: 2 | AP53: H for 30 minutes only
A54: 135.048 | B54: Accepted | C54: NA | D54: Limejump Energy Ltd | E54: AG-HLIM01 | F54: TO connection | G54: DSF: Storage (for export) | H54: 2021-03-31 | I54: 2021-04-30 | J54: 31.03.21 - 30.04.21 (1 months) | K54: As per FFR framework agreement | L54: 2300 | M54: 700 | N54: 8 | O54: 2300 | P54: 700 | Q54: 8 | R54: 2300 | S54: 700 | T54: 8 | U54: 34.89 | AC54: 1.2 | AD54: 3 | AE54: 3 | AF54: 1.2 | AG54: 3 | AH54: 1.2 | AI54: 3 | AP54: H for 30 minutes only
A55: 135.049 | B55: Rejected | C55: 2 | D55: Limejump Energy Ltd | E55: AG-HLIM01 | F55: TO connection | G55: DSF: Storage (for export) | H55: 2021-04-01 | I55: 2021-04-30 | J55: 01.04.21 - 30.04.21 (1 months) | K55: As per FFR framework agreement | L55: 700 | M55: 1500 | N55: 8 | O55: 700 | P55: 1500 | Q55: 8 | R55: 700 | S55: 1500 | T55: 8 | U55: 38.25 | AC55: 1.2 | AD55: 3 | AE55: 3 | AF55: 1.2 | AG55: 3 | AH55: 1.2 | AI55: 3 | AP55: H for 30 minutes only
A56: 135.05 | B56: Rejected | C56: 2 | D56: Limejump Energy Ltd | E56: AG-HLIM01 | F56: TO connection | G56: DSF: Storage (for export) | H56: 2021-04-01 | I56: 2021-04-30 | J56: 01.04.21 - 30.04.21 (1 months) | K56: As per FFR framework agreement | L56: 1500 | M56: 2300 | N56: 8 | O56: 1500 | P56: 2300 | Q56: 8 | R56: 1500 | S56: 2300 | T56: 8 | U56: 44.91 | AC56: 1.2 | AD56: 3 | AE56: 3 | AF56: 1.2 | AG56: 3 | AH56: 1.2 | AI56: 3 | AP56: H for 30 minutes only
A57: 135.051 | B57: Accepted | C57: NA | D57: Limejump Energy Ltd | E57: AG-ELIM02 | F57: TO connection | G57: DSF: Storage (for export) | H57: 2021-03-31 | I57: 2021-04-30 | J57: 31.03.21 - 30.04.21 (1 months) | K57: As per FFR framework agreement | L57: 2300 | M57: 700 | N57: 8 | O57: 2300 | P57: 700 | Q57: 8 | R57: 2300 | S57: 700 | T57: 8 | U57: 35.73 | AC57: 1.2 | AD57: 3 | AE57: 3 | AF57: 1.2 | AG57: 3 | AH57: 1.2 | AI57: 3 | AP57: H for 30 minutes only
A58: 135.052 | B58: Rejected | C58: 2 | D58: Limejump Energy Ltd | E58: AG-ELIM02 | F58: TO connection | G58: DSF: Storage (for export) | H58: 2021-04-01 | I58: 2021-04-30 | J58: 01.04.21 - 30.04.21 (1 months) | K58: As per FFR framework agreement | L58: 700 | M58: 1500 | N58: 8 | O58: 700 | P58: 1500 | Q58: 8 | R58: 700 | S58: 1500 | T58: 8 | U58: 38.97 | AC58: 1.2 | AD58: 3 | AE58: 3 | AF58: 1.2 | AG58: 3 | AH58: 1.2 | AI58: 3 | AP58: H for 30 minutes only
A59: 135.053 | B59: Rejected | C59: 2 | D59: Limejump Energy Ltd | E59: AG-ELIM02 | F59: TO connection | G59: DSF: Storage (for export) | H59: 2021-04-01 | I59: 2021-04-30 | J59: 01.04.21 - 30.04.21 (1 months) | K59: As per FFR framework agreement | L59: 1500 | M59: 2300 | N59: 8 | O59: 1500 | P59: 2300 | Q59: 8 | R59: 1500 | S59: 2300 | T59: 8 | U59: 45.09 | AC59: 1.2 | AD59: 3 | AE59: 3 | AF59: 1.2 | AG59: 3 | AH59: 1.2 | AI59: 3 | AP59: H for 30 minutes only
A60: 135.054 | B60: Accepted | C60: NA | D60: Limejump Ltd | E60: LJDYN-2 | F60: DNO connection | G60: DSF: Storage (for export) | H60: 2021-03-31 | I60: 2021-04-30 | J60: 31.03.21 - 30.04.21 (1 months) | K60: As per FFR framework agreement | L60: 2300 | M60: 700 | N60: 8 | O60: 2300 | P60: 700 | Q60: 8 | R60: 2300 | S60: 700 | T60: 8 | U60: 74.4 | AC60: 2.4 | AD60: 6 | AE60: 6 | AF60: 2.4 | AG60: 6 | AH60: 2.4 | AI60: 6 | AP60: H for 30 minutes only
A61: 135.055 | B61: Rejected | C61: 2 | D61: Limejump Ltd | E61: LJDYN-2 | F61: DNO connection | G61: DSF: Storage (for export) | H61: 2021-04-01 | I61: 2021-04-30 | J61: 01.04.21 - 30.04.21 (1 months) | K61: As per FFR framework agreement | L61: 700 | M61: 1500 | N61: 8 | O61: 700 | P61: 1500 | Q61: 8 | R61: 700 | S61: 1500 | T61: 8 | U61: 81.6 | AC61: 2.4 | AD61: 6 | AE61: 6 | AF61: 2.4 | AG61: 6 | AH61: 2.4 | AI61: 6 | AP61: H for 30 minutes only
A62: 135.056 | B62: Rejected | C62: 2 | D62: Limejump Ltd | E62: LJDYN-2 | F62: DNO connection | G62: DSF: Storage (for export) | H62: 2021-04-01 | I62: 2021-04-30 | J62: 01.04.21 - 30.04.21 (1 months) | K62: As per FFR framework agreement | L62: 1500 | M62: 2300 | N62: 8 | O62: 1500 | P62: 2300 | Q62: 8 | R62: 1500 | S62: 2300 | T62: 8 | U62: 96.6 | AC62: 2.4 | AD62: 6 | AE62: 6 | AF62: 2.4 | AG62: 6 | AH62: 2.4 | AI62: 6 | AP62: H for 30 minutes only
A63: 135.057 | B63: Accepted | C63: NA | D63: npower | E63: NPFRD-1 | F63: DNO connection | G63: Battery | H63: 2021-03-31 | I63: 2021-04-30 | J63: 31.03.21 - 30.04.21 (1 months) | K63: As per FFR framework agreement | L63: 2300 | M63: 700 | N63: =IF(L63>M63, (2400-L63+M63)/100, IF(AND(L63="",M63="",L63=M63), "", IF(L63=M63,24,(M63-L63)/100))) -> 8 | O63: 2300 | P63: 700 | Q63: =IF(O63>P63, (2400-O63+P63)/100, IF(AND(O63="",P63="",O63=P63), "", IF(O63=P63,24,(P63-O63)/100))) -> 8 | R63: 2300 | S63: 700 | T63: =IF(R63>S63, (2400-R63+S63)/100, IF(AND(R63="",S63="",R63=S63), "", IF(R63=S63,24,(S63-R63)/100))) -> 8 | U63: 46 | AC63: 1.6 | AD63: 4 | AE63: 4 | AF63: 1.6 | AG63: 4 | AH63: 1.6 | AI63: 4 | AL63: A
A64: 135.058 | B64: Accepted | C64: NA | D64: npower | E64: NPFRD-1 | F64: DNO connection | G64: Battery | H64: 2021-04-01 | I64: 2021-04-30 | J64: 01.04.21 - 30.04.21 (1 months) | K64: As per FFR framework agreement | L64: 700 | M64: 1500 | N64: =IF(L64>M64, (2400-L64+M64)/100, IF(AND(L64="",M64="",L64=M64), "", IF(L64=M64,24,(M64-L64)/100))) -> 8 | O64: 700 | P64: 1500 | Q64: =IF(O64>P64, (2400-O64+P64)/100, IF(AND(O64="",P64="",O64=P64), "", IF(O64=P64,24,(P64-O64)/100))) -> 8 | R64: 700 | S64: 1500 | T64: =IF(R64>S64, (2400-R64+S64)/100, IF(AND(R64="",S64="",R64=S64), "", IF(R64=S64,24,(S64-R64)/100))) -> 8 | U64: 49.4 | AC64: 1.6 | AD64: 4 | AE64: 4 | AF64: 1.6 | AG64: 4 | AH64: 1.6 | AI64: 4 | AL64: B
A65: 135.059 | B65: Rejected | C65: 2 | D65: npower | E65: NPFRD-1 | F65: DNO connection | G65: Battery | H65: 2021-04-01 | I65: 2021-04-30 | J65: 01.04.21 - 30.04.21 (1 months) | K65: As per FFR framework agreement | L65: 1500 | M65: 2300 | N65: 8 | O65: 1500 | P65: 2300 | Q65: 8 | R65: 1500 | S65: 2300 | T65: 8 | U65: =14.75*4 -> 59 | AC65: 1.6 | AD65: 4 | AE65: 4 | AF65: 1.6 | AG65: 4 | AH65: 1.6 | AI65: 4 | AL65: C
A66: =A65+0.001 -> 135.06 | B66: Accepted | C66: NA | D66: Open Energi Limited | E66: OPEN-1 | F66: DNO connection | G66: DSF: Load response | H66: 2021-03-31 | I66: 2021-04-30 | J66: 31.03.21 - 30.04.21 (1 months) | K66: As per FFR framework agreement | L66: 2300 | M66: 700 | N66: =IF(L66>M66, (2400-L66+M66)/100, IF(AND(L66="",M66="",L66=M66), "", IF(L66=M66,24,(M66-L66)/100))) -> 8 | O66: 2300 | P66: 700 | Q66: =IF(O66>P66, (2400-O66+P66)/100, IF(AND(O66="",P66="",O66=P66), "", IF(O66=P66,24,(P66-O66)/100))) -> 8 | R66: 2300 | S66: 700 | T66: =IF(R66>S66, (2400-R66+S66)/100, IF(AND(R66="",S66="",R66=S66), "", IF(R66=S66,24,(S66-R66)/100))) -> 8 | U66: 21.9 | AC66: 0.8 | AD66: 2 | AE66: 2 | AF66: 0.8 | AG66: 2 | AH66: 0.8 | AI66: 2 | AL66: A
A67: =A66+0.001 -> 135.061 | B67: Accepted | C67: NA | D67: Open Energi Limited | E67: OPEN-1 | F67: DNO connection | G67: DSF: Load response | H67: 2021-04-01 | I67: 2021-04-30 | J67: 01.04.21 - 30.04.21 (1 months) | K67: As per FFR framework agreement | L67: 700 | M67: 1500 | N67: =IF(L67>M67, (2400-L67+M67)/100, IF(AND(L67="",M67="",L67=M67), "", IF(L67=M67,24,(M67-L67)/100))) -> 8 | O67: 700 | P67: 1500 | Q67: =IF(O67>P67, (2400-O67+P67)/100, IF(AND(O67="",P67="",O67=P67), "", IF(O67=P67,24,(P67-O67)/100))) -> 8 | R67: 700 | S67: 1500 | T67: =IF(R67>S67, (2400-R67+S67)/100, IF(AND(R67="",S67="",R67=S67), "", IF(R67=S67,24,(S67-R67)/100))) -> 8 | U67: 23.9 | AC67: 0.8 | AD67: 2 | AE67: 2 | AF67: 0.8 | AG67: 2 | AH67: 0.8 | AI67: 2 | AL67: B
A68: =A65+0.003 -> 135.062 | B68: Rejected | C68: 2 | D68: Open Energi Limited | E68: OPEN-1 | F68: DNO connection | G68: DSF: Load response | H68: 2021-04-01 | I68: 2021-04-30 | J68: =IFERROR(TEXT(H68,"DD.MM.YY")&" - "&TEXT(I68,"DD.MM.YY")&" ("&DATEDIF(H68,I68+1,"m")&" months)","Tender End Date is Before Start Date") -> 01.04.21 - 30.04.21 (1 months) | K68: As per FFR framework agreement | L68: 1500 | M68: 1900 | N68: 4 | U68: 22.42 | AC68: 0.8 | AD68: 2 | AE68: 2 | AF68: 0.8 | AG68: 2 | AH68: 0.4 | AI68: 1 | AL68: C
A69: =A68+0.001 -> 135.063 | B69: Rejected | C69: 2 | D69: Open Energi Limited | E69: OPEN-1 | F69: DNO connection | G69: DSF: Load response | H69: 2021-04-01 | I69: 2021-04-30 | J69: =IFERROR(TEXT(H69,"DD.MM.YY")&" - "&TEXT(I69,"DD.MM.YY")&" ("&DATEDIF(H69,I69+1,"m")&" months)","Tender End Date is Before Start Date") -> 01.04.21 - 30.04.21 (1 months) | K69: As per FFR framework agreement | L69: 1900 | M69: 2300 | N69: 4 | O69: 1500 | P69: 2300 | Q69: 8 | R69: 1500 | S69: 2300 | T69: 8 | U69: 26.9 | AC69: 0.8 | AD69: 2 | AE69: 2 | AF69: 0.8 | AG69: 2 | AH69: 0.8 | AI69: 2 | AL69: C
A70: =A69+0.001 -> 135.064 | B70: Accepted | C70: NA | D70: Open Energi Limited | E70: OPEN-2 | F70: DNO connection | G70: DSF: Storage (onsite) | H70: 2021-03-31 | I70: 2021-04-30 | J70: =IFERROR(TEXT(H70,"DD.MM.YY")&" - "&TEXT(I70,"DD.MM.YY")&" ("&DATEDIF(H70,I70+1,"m")&" months)","Tender End Date is Before Start Date") -> 31.03.21 - 30.04.21 (1 months) | K70: As per FFR framework agreement | L70: 2300 | M70: 700 | N70: 8 | O70: 2300 | P70: 700 | Q70: 8 | R70: 2300 | S70: 700 | T70: 8 | U70: 35.85 | AC70: 1.2 | AD70: 3 | AE70: 3 | AF70: 1.2 | AG70: 3 | AH70: 1.2 | AI70: 3 | AL70: D
A71: =A70+0.001 -> 135.065 | B71: Rejected | C71: 2 | D71: Open Energi Limited | E71: OPEN-2 | F71: DNO connection | G71: DSF: Storage (onsite) | H71: 2021-04-01 | I71: 2021-04-30 | J71: 01.04.21 - 30.04.21 (1 months) | K71: As per FFR framework agreement | L71: 700 | M71: 1500 | N71: 8 | O71: 700 | P71: 1500 | Q71: 8 | R71: 700 | S71: 1500 | T71: 8 | U71: 38.85 | AC71: 1.2 | AD71: 3 | AE71: 3 | AF71: 1.2 | AG71: 3 | AH71: 1.2 | AI71: 3 | AL71: E
A72: =A71+0.001 -> 135.066 | B72: Rejected | C72: 2 | D72: Open Energi Limited | E72: OPEN-2 | F72: DNO connection | G72: DSF: Storage (onsite) | H72: 2021-04-01 | I72: 2021-04-30 | J72: =IFERROR(TEXT(H72,"DD.MM.YY")&" - "&TEXT(I72,"DD.MM.YY")&" ("&DATEDIF(H72,I72+1,"m")&" months)","Tender End Date is Before Start Date") -> 01.04.21 - 30.04.21 (1 months) | K72: As per FFR framework agreement | L72: 1500 | M72: 2300 | N72: 8 | O72: 1500 | P72: 2300 | Q72: 8 | R72: 1500 | S72: 2300 | T72: 8 | U72: 47.85 | AC72: 1.2 | AD72: 3 | AE72: 3 | AF72: 1.2 | AG72: 3 | AH72: 1.2 | AI72: 3 | AL72: F
A73: 135.067 | B73: Accepted | C73: NA | D73: Peak Gen | E73: PGFFR-5 | F73: DNO connection | G73: DSF: Distributed generation (for export) | H73: 2021-04-01 | I73: 2021-04-30 | J73: 01.04.21 - 30.04.21 (1 months) | K73: As per FFR framework agreement | L73: 700 | M73: 1500 | N73: =IF(L73>M73, (2400-L73+M73)/100, IF(AND(L73="",M73="",L73=M73), "", IF(L73=M73,24,(M73-L73)/100))) -> 8 | O73: 700 | P73: 1500 | Q73: =IF(O73>P73, (2400-O73+P73)/100, IF(AND(O73="",P73="",O73=P73), "", IF(O73=P73,24,(P73-O73)/100))) -> 8 | R73: 700 | S73: 1500 | T73: =IF(R73>S73, (2400-R73+S73)/100, IF(AND(R73="",S73="",R73=S73), "", IF(R73=S73,24,(S73-R73)/100))) -> 8 | U73: 15.99 | AO73: 20
A74: 135.068 | B74: Accepted | C74: NA | D74: Peak Gen | E74: PGFFR-5 | F74: DNO connection | G74: DSF: Distributed generation (for export) | H74: 2021-04-01 | I74: 2021-04-30 | J74: 01.04.21 - 30.04.21 (1 months) | K74: As per FFR framework agreement | L74: 1500 | M74: 2300 | N74: =IF(L74>M74, (2400-L74+M74)/100, IF(AND(L74="",M74="",L74=M74), "", IF(L74=M74,24,(M74-L74)/100))) -> 8 | O74: 1500 | P74: 2300 | Q74: =IF(O74>P74, (2400-O74+P74)/100, IF(AND(O74="",P74="",O74=P74), "", IF(O74=P74,24,(P74-O74)/100))) -> 8 | R74: 1500 | S74: 2300 | T74: =IF(R74>S74, (2400-R74+S74)/100, IF(AND(R74="",S74="",R74=S74), "", IF(R74=S74,24,(S74-R74)/100))) -> 8 | U74: 15.99 | AO74: 20
A75: 135.069 | B75: Accepted | C75: NA | D75: Peak Gen | E75: PGFFR-6 | F75: DNO connection | G75: DSF: Distributed generation (for export) | H75: 2021-04-01 | I75: 2021-04-30 | J75: 01.04.21 - 30.04.21 (1 months) | K75: As per FFR framework agreement | L75: 700 | M75: 1500 | N75: 8 | O75: 700 | P75: 1500 | Q75: 8 | R75: 700 | S75: 1500 | T75: 8 | U75: 15.99 | AO75: 20
A76: 135.07 | B76: Accepted | C76: NA | D76: Peak Gen | E76: PGFFR-6 | F76: DNO connection | G76: DSF: Distributed generation (for export) | H76: 2021-04-01 | I76: 2021-04-30 | J76: 01.04.21 - 30.04.21 (1 months) | K76: As per FFR framework agreement | L76: 1500 | M76: 2300 | N76: 8 | O76: 1500 | P76: 2300 | Q76: 8 | R76: 1500 | S76: 2300 | T76: 8 | U76: 15.99 | AO76: 20
A77: 135.071 | B77: Accepted | C77: NA | D77: Peak Gen | E77: PGFFR-7 | F77: DNO connection | G77: DSF: Distributed generation (for export) | H77: 2021-04-01 | I77: 2021-04-30 | J77: 01.04.21 - 30.04.21 (1 months) | K77: As per FFR framework agreement | L77: 700 | M77: 2300 | N77: 16 | O77: 700 | P77: 2300 | Q77: 16 | R77: 700 | S77: 2300 | T77: 16 | U77: 15.99 | AO77: 20
A78: 135.072 | B78: Accepted | C78: NA | D78: Peak Gen | E78: PGFFR-8 | F78: DNO connection | G78: DSF: Distributed generation (for export) | H78: 2021-04-01 | I78: 2021-04-30 | J78: 01.04.21 - 30.04.21 (1 months) | K78: As per FFR framework agreement | L78: 700 | M78: 1100 | N78: 4 | O78: 700 | P78: 1100 | Q78: 4 | R78: 700 | S78: 1100 | T78: 4 | U78: 15.99 | AO78: 20
A79: =A78+0.001 -> 135.073 | B79: Accepted | C79: NA | D79: Peak Gen | E79: PGFFR-8 | F79: DNO connection | G79: DSF: Distributed generation (for export) | H79: 2021-04-01 | I79: 2021-04-30 | J79: 01.04.21 - 30.04.21 (1 months) | K79: As per FFR framework agreement | L79: 1100 | M79: 1500 | N79: 4 | O79: 1100 | P79: 1500 | Q79: 4 | R79: 1100 | S79: 1500 | T79: 4 | U79: 15.99 | AO79: 20
A80: 135.074 | B80: Accepted | C80: NA | D80: Peak Gen | E80: PGFFR-9 | F80: DNO connection | G80: DSF: Distributed generation (for export) | H80: 2021-04-01 | I80: 2021-04-30 | J80: 01.04.21 - 30.04.21 (1 months) | K80: As per FFR framework agreement | L80: 1100 | M80: 1500 | N80: 4 | O80: 1100 | P80: 1500 | Q80: 4 | R80: 1100 | S80: 1500 | T80: 4 | U80: 15.99 | AO80: 20
A81: 135.075 | B81: Accepted | C81: NA | D81: Social Energy Limited | E81: SOC1-FFR | F81: DNO connection | G81: DSF: Storage (onsite) | H81: 2021-03-31 | I81: 2021-04-30 | J81: 31.03.21 - 30.04.21 (1 months) | K81: As per FFR framework agreement | L81: 2300 | M81: 700 | N81: =IF(L81>M81, (2400-L81+M81)/100, IF(AND(L81="",M81="",L81=M81), "", IF(L81=M81,24,(M81-L81)/100))) -> 8 | O81: 2300 | P81: 700 | Q81: =IF(O81>P81, (2400-O81+P81)/100, IF(AND(O81="",P81="",O81=P81), "", IF(O81=P81,24,(P81-O81)/100))) -> 8 | R81: 2300 | S81: 700 | T81: =IF(R81>S81, (2400-R81+S81)/100, IF(AND(R81="",S81="",R81=S81), "", IF(R81=S81,24,(S81-R81)/100))) -> 8 | U81: 9 | AC81: 0.4 | AD81: 1 | AE81: 1 | AF81: 0.4 | AG81: 1 | AH81: 0.4 | AI81: 1 | AP81: H for only 30min
A82: 135.076 | B82: Rejected | C82: 2 | D82: Social Energy Limited | E82: SOC1-FFR | F82: DNO connection | G82: DSF: Storage (onsite) | H82: 2021-04-01 | I82: 2021-04-30 | J82: 01.04.21 - 30.04.21 (1 months) | K82: As per FFR framework agreement | L82: 700 | M82: 1500 | N82: =IF(L82>M82, (2400-L82+M82)/100, IF(AND(L82="",M82="",L82=M82), "", IF(L82=M82,24,(M82-L82)/100))) -> 8 | O82: 700 | P82: 1500 | Q82: =IF(O82>P82, (2400-O82+P82)/100, IF(AND(O82="",P82="",O82=P82), "", IF(O82=P82,24,(P82-O82)/100))) -> 8 | R82: 700 | S82: 1500 | T82: =IF(R82>S82, (2400-R82+S82)/100, IF(AND(R82="",S82="",R82=S82), "", IF(R82=S82,24,(S82-R82)/100))) -> 8 | U82: 15 | AC82: 0.4 | AD82: 1 | AE82: 1 | AF82: 0.4 | AG82: 1 | AH82: 0.4 | AI82: 1 | AP82: H for only 30min
A83: 135.077 | B83: Rejected | C83: 2 | D83: Social Energy Limited | E83: SOC1-FFR | F83: DNO connection | G83: DSF: Storage (onsite) | H83: 2021-04-01 | I83: 2021-04-30 | J83: 01.04.21 - 30.04.21 (1 months) | K83: As per FFR framework agreement | L83: 1500 | M83: 2300 | N83: 8 | O83: 1500 | P83: 2300 | Q83: 8 | R83: 1500 | S83: 2300 | T83: 8 | U83: 13.21 | AC83: 0.4 | AD83: 1 | AE83: 1 | AF83: 0.4 | AG83: 1 | AH83: 0.4 | AI83: 1 | AP83: H for only 30min
A84: 135.078 | B84: Accepted | C84: NA | D84: Social Energy Limited | E84: SOC2-FFR | F84: DNO connection | G84: DSF: Storage (onsite) | H84: 2021-03-31 | I84: 2021-04-30 | J84: 31.03.21 - 30.04.21 (1 months) | K84: As per FFR framework agreement | L84: 2300 | M84: 700 | N84: 8 | O84: 2300 | P84: 700 | Q84: 8 | R84: 2300 | S84: 700 | T84: 8 | U84: 9.38 | AC84: 0.4 | AD84: 1 | AE84: 1 | AF84: 0.4 | AG84: 1 | AH84: 0.4 | AI84: 1 | AP84: H for only 30min
A85: 135.079 | B85: Rejected | C85: 2 | D85: Social Energy Limited | E85: SOC2-FFR | F85: DNO connection | G85: DSF: Storage (onsite) | H85: 2021-04-01 | I85: 2021-04-30 | J85: 01.04.21 - 30.04.21 (1 months) | K85: As per FFR framework agreement | L85: 700 | M85: 1500 | N85: 8 | O85: 700 | P85: 1500 | Q85: 8 | R85: 700 | S85: 1500 | T85: 8 | U85: 14.69 | AC85: 0.4 | AD85: 1 | AE85: 1 | AF85: 0.4 | AG85: 1 | AH85: 0.4 | AI85: 1 | AP85: H for only 30min
A86: 135.08 | B86: Rejected | C86: 2 | D86: Social Energy Limited | E86: SOC2-FFR | F86: DNO connection | G86: DSF: Storage (onsite) | H86: 2021-04-01 | I86: 2021-04-30 | J86: 01.04.21 - 30.04.21 (1 months) | K86: As per FFR framework agreement | L86: 1500 | M86: 2300 | N86: 8 | O86: 1500 | P86: 2300 | Q86: 8 | R86: 1500 | S86: 2300 | T86: 8 | U86: 13.54 | AC86: 0.4 | AD86: 1 | AE86: 1 | AF86: 0.4 | AG86: 1 | AH86: 0.4 | AI86: 1 | AP86: H for only 30min
A87: 135.081 | B87: Accepted | C87: NA | D87: Social Energy Limited | E87: SOC3-FFR | F87: DNO connection | G87: DSF: Storage (onsite) | H87: 2021-03-31 | I87: 2021-04-30 | J87: 31.03.21 - 30.04.21 (1 months) | K87: As per FFR framework agreement | L87: 2300 | M87: 700 | N87: 8 | O87: 2300 | P87: 700 | Q87: 8 | R87: 2300 | S87: 700 | T87: 8 | U87: 9.75 | AC87: 0.4 | AD87: 1 | AE87: 1 | AF87: 0.4 | AG87: 1 | AH87: 0.4 | AI87: 1 | AP87: H for only 30min
A88: 135.082 | B88: Rejected | C88: 2 | D88: Social Energy Limited | E88: SOC3-FFR | F88: DNO connection | G88: DSF: Storage (onsite) | H88: 2021-04-01 | I88: 2021-04-30 | J88: 01.04.21 - 30.04.21 (1 months) | K88: As per FFR framework agreement | L88: 700 | M88: 1500 | N88: 8 | O88: 700 | P88: 1500 | Q88: 8 | R88: 700 | S88: 1500 | T88: 8 | U88: 14.38 | AC88: 0.4 | AD88: 1 | AE88: 1 | AF88: 0.4 | AG88: 1 | AH88: 0.4 | AI88: 1 | AP88: H for only 30min
A89: =A88+0.001 -> 135.083 | B89: Rejected | C89: 2 | D89: Social Energy Limited | E89: SOC3-FFR | F89: DNO connection | G89: DSF: Storage (onsite) | H89: 2021-04-01 | I89: 2021-04-30 | J89: 01.04.21 - 30.04.21 (1 months) | K89: As per FFR framework agreement | L89: 1500 | M89: 2300 | N89: 8 | O89: 1500 | P89: 2300 | Q89: 8 | R89: 1500 | S89: 2300 | T89: 8 | U89: 13.87 | AC89: 0.4 | AD89: 1 | AE89: 1 | AF89: 0.4 | AG89: 1 | AH89: 0.4 | AI89: 1 | AP89: H for only 30min
A90: 135.084 | B90: Accepted | C90: NA | D90: Social Energy Limited | E90: SOC4-FFR | F90: DNO connection | G90: DSF: Storage (onsite) | H90: 2021-03-31 | I90: 2021-04-30 | J90: 31.03.21 - 30.04.21 (1 months) | K90: As per FFR framework agreement | L90: 2300 | M90: 700 | N90: 8 | O90: 2300 | P90: 700 | Q90: 8 | R90: 2300 | S90: 700 | T90: 8 | U90: 10.13 | AC90: 0.4 | AD90: 1 | AE90: 1 | AF90: 0.4 | AG90: 1 | AH90: 0.4 | AI90: 1 | AP90: H for only 30min
A91: 135.085 | B91: Rejected | C91: 2 | D91: Social Energy Limited | E91: SOC4-FFR | F91: DNO connection | G91: DSF: Storage (onsite) | H91: 2021-04-01 | I91: 2021-04-30 | J91: 01.04.21 - 30.04.21 (1 months) | K91: As per FFR framework agreement | L91: 700 | M91: 1500 | N91: 8 | O91: 700 | P91: 1500 | Q91: 8 | R91: 700 | S91: 1500 | T91: 8 | U91: 14.06 | AC91: 0.4 | AD91: 1 | AE91: 1 | AF91: 0.4 | AG91: 1 | AH91: 0.4 | AI91: 1 | AP91: H for only 30min
A92: 135.086 | B92: Rejected | C92: 2 | D92: Social Energy Limited | E92: SOC4-FFR | F92: DNO connection | G92: DSF: Storage (onsite) | H92: 2021-04-01 | I92: 2021-04-30 | J92: 01.04.21 - 30.04.21 (1 months) | K92: As per FFR framework agreement | L92: 1500 | M92: 2300 | N92: 8 | O92: 1500 | P92: 2300 | Q92: 8 | R92: 1500 | S92: 2300 | T92: 8 | U92: 14.2 | AC92: 0.4 | AD92: 1 | AE92: 1 | AF92: 0.4 | AG92: 1 | AH92: 0.4 | AI92: 1 | AP92: H for only 30min
A93: =A92+0.001 -> 135.087 | B93: Accepted | C93: NA | D93: Social Energy Limited | E93: SOC5-FFR | F93: DNO connection | G93: DSF: Storage (onsite) | H93: 2021-03-31 | I93: 2021-04-30 | J93: 31.03.21 - 30.04.21 (1 months) | K93: As per FFR framework agreement | L93: 2300 | M93: 700 | N93: 8 | O93: 2300 | P93: 700 | Q93: 8 | R93: 2300 | S93: 700 | T93: 8 | U93: 10.5 | AC93: 0.4 | AD93: 1 | AE93: 1 | AF93: 0.4 | AG93: 1 | AH93: 0.4 | AI93: 1 | AP93: H for only 30min
A94: 135.088 | B94: Rejected | C94: 2 | D94: Social Energy Limited | E94: SOC5-FFR | F94: DNO connection | G94: DSF: Storage (onsite) | H94: 2021-04-01 | I94: 2021-04-30 | J94: 01.04.21 - 30.04.21 (1 months) | K94: As per FFR framework agreement | L94: 700 | M94: 1500 | N94: 8 | O94: 700 | P94: 1500 | Q94: 8 | R94: 700 | S94: 1500 | T94: 8 | U94: 13.75 | AC94: 0.4 | AD94: 1 | AE94: 1 | AF94: 0.4 | AG94: 1 | AH94: 0.4 | AI94: 1 | AP94: H for only 30min
A95: 135.089 | B95: Rejected | C95: 2 | D95: Social Energy Limited | E95: SOC5-FFR | F95: DNO connection | G95: DSF: Storage (onsite) | H95: 2021-04-01 | I95: 2021-04-30 | J95: 01.04.21 - 30.04.21 (1 months) | K95: As per FFR framework agreement | L95: 1500 | M95: 2300 | N95: 8 | O95: 1500 | P95: 2300 | Q95: 8 | R95: 1500 | S95: 2300 | T95: 8 | U95: 14.54 | AC95: 0.4 | AD95: 1 | AE95: 1 | AF95: 0.4 | AG95: 1 | AH95: 0.4 | AI95: 1 | AP95: H for only 30min
A96: 135.09 | B96: Accepted | C96: NA | D96: Social Energy Limited | E96: SOC6-FFR | F96: DNO connection | G96: DSF: Storage (onsite) | H96: 2021-03-31 | I96: 2021-04-30 | J96: 31.03.21 - 30.04.21 (1 months) | K96: As per FFR framework agreement | L96: 2300 | M96: 700 | N96: 8 | O96: 2300 | P96: 700 | Q96: 8 | R96: 2300 | S96: 700 | T96: 8 | U96: 10.88 | AC96: 0.4 | AD96: 1 | AE96: 1 | AF96: 0.4 | AG96: 1 | AH96: 0.4 | AI96: 1 | AP96: H for only 30min
A97: 135.091 | B97: Rejected | C97: 2 | D97: Social Energy Limited | E97: SOC6-FFR | F97: DNO connection | G97: DSF: Storage (onsite) | H97: 2021-04-01 | I97: 2021-04-30 | J97: 01.04.21 - 30.04.21 (1 months) | K97: As per FFR framework agreement | L97: 700 | M97: 1500 | N97: 8 | O97: 700 | P97: 1500 | Q97: 8 | R97: 700 | S97: 1500 | T97: 8 | U97: 13.44 | AC97: 0.4 | AD97: 1 | AE97: 1 | AF97: 0.4 | AG97: 1 | AH97: 0.4 | AI97: 1 | AP97: H for only 30min
A98: 135.092 | B98: Rejected | C98: 2 | D98: Social Energy Limited | E98: SOC6-FFR | F98: DNO connection | G98: DSF: Storage (onsite) | H98: 2021-04-01 | I98: 2021-04-30 | J98: 01.04.21 - 30.04.21 (1 months) | K98: As per FFR framework agreement | L98: 1500 | M98: 2300 | N98: 8 | O98: 1500 | P98: 2300 | Q98: 8 | R98: 1500 | S98: 2300 | T98: 8 | U98: 14.87 | AC98: 0.4 | AD98: 1 | AE98: 1 | AF98: 0.4 | AG98: 1 | AH98: 0.4 | AI98: 1 | AP98: H for only 30min
A99: 135.093 | B99: Accepted | C99: NA | D99: Social Energy Limited | E99: SOC7-FFR | F99: DNO connection | G99: DSF: Storage (onsite) | H99: 2021-03-31 | I99: 2021-04-30 | J99: 31.03.21 - 30.04.21 (1 months) | K99: As per FFR framework agreement | L99: 2300 | M99: 700 | N99: 8 | O99: 2300 | P99: 700 | Q99: 8 | R99: 2300 | S99: 700 | T99: 8 | U99: 11.25 | AC99: 0.4 | AD99: 1 | AE99: 1 | AF99: 0.4 | AG99: 1 | AH99: 0.4 | AI99: 1 | AP99: H for only 30min
A100: 135.094 | B100: Rejected | C100: 2 | D100: Social Energy Limited | E100: SOC7-FFR | F100: DNO connection | G100: DSF: Storage (onsite) | H100: 2021-04-01 | I100: 2021-04-30 | J100: 01.04.21 - 30.04.21 (1 months) | K100: As per FFR framework agreement | L100: 700 | M100: 1500 | N100: 8 | O100: 700 | P100: 1500 | Q100: 8 | R100: 700 | S100: 1500 | T100: 8 | U100: 13.13 | AC100: 0.4 | AD100: 1 | AE100: 1 | AF100: 0.4 | AG100: 1 | AH100: 0.4 | AI100: 1 | AP100: H for only 30min
A101: 135.095 | B101: Rejected | C101: 2 | D101: Social Energy Limited | E101: SOC7-FFR | F101: DNO connection | G101: DSF: Storage (onsite) | H101: 2021-04-01 | I101: 2021-04-30 | J101: 01.04.21 - 30.04.21 (1 months) | K101: As per FFR framework agreement | L101: 1500 | M101: 2300 | N101: 8 | O101: 1500 | P101: 2300 | Q101: 8 | R101: 1500 | S101: 2300 | T101: 8 | U101: 15.2 | AC101: 0.4 | AD101: 1 | AE101: 1 | AF101: 0.4 | AG101: 1 | AH101: 0.4 | AI101: 1 | AP101: H for only 30min
A102: 135.096 | B102: Accepted | C102: NA | D102: Social Energy Limited | E102: SOC8-FFR | F102: DNO connection | G102: DSF: Storage (onsite) | H102: 2021-03-31 | I102: 2021-04-30 | J102: 31.03.21 - 30.04.21 (1 months) | K102: As per FFR framework agreement | L102: 2300 | M102: 700 | N102: 8 | O102: 2300 | P102: 700 | Q102: 8 | R102: 2300 | S102: 700 | T102: 8 | U102: 11.63 | AC102: 0.4 | AD102: 1 | AE102: 1 | AF102: 0.4 | AG102: 1 | AH102: 0.4 | AI102: 1 | AP102: H for only 30min
A103: 135.097 | B103: Rejected | C103: 2 | D103: Social Energy Limited | E103: SOC8-FFR | F103: DNO connection | G103: DSF: Storage (onsite) | H103: 2021-04-01 | I103: 2021-04-30 | J103: 01.04.21 - 30.04.21 (1 months) | K103: As per FFR framework agreement | L103: 700 | M103: 1500 | N103: 8 | O103: 700 | P103: 1500 | Q103: 8 | R103: 700 | S103: 1500 | T103: 8 | U103: 12.81 | AC103: 0.4 | AD103: 1 | AE103: 1 | AF103: 0.4 | AG103: 1 | AH103: 0.4 | AI103: 1 | AP103: H for only 30min
A104: 135.098 | B104: Rejected | C104: 2 | D104: Social Energy Limited | E104: SOC8-FFR | F104: DNO connection | G104: DSF: Storage (onsite) | H104: 2021-04-01 | I104: 2021-04-30 | J104: 01.04.21 - 30.04.21 (1 months) | K104: As per FFR framework agreement | L104: 1500 | M104: 2300 | N104: 8 | O104: 1500 | P104: 2300 | Q104: 8 | R104: 1500 | S104: 2300 | T104: 8 | U104: 15.53 | AC104: 0.4 | AD104: 1 | AE104: 1 | AF104: 0.4 | AG104: 1 | AH104: 0.4 | AI104: 1 | AP104: H for only 30min
A105: 135.099 | B105: Accepted | C105: NA | D105: Social Energy Limited | E105: SOC9-FFR | F105: DNO connection | G105: DSF: Storage (onsite) | H105: 2021-03-31 | I105: 2021-04-30 | J105: 31.03.21 - 30.04.21 (1 months) | K105: As per FFR framework agreement | L105: 2300 | M105: 700 | N105: 8 | O105: 2300 | P105: 700 | Q105: 8 | R105: 2300 | S105: 700 | T105: 8 | U105: 12 | AC105: 0.4 | AD105: 1 | AE105: 1 | AF105: 0.4 | AG105: 1 | AH105: 0.4 | AI105: 1 | AP105: H for only 30min
A106: 135.1 | B106: Accepted | C106: NA | D106: Social Energy Limited | E106: SOC9-FFR | F106: DNO connection | G106: DSF: Storage (onsite) | H106: 2021-04-01 | I106: 2021-04-30 | J106: 01.04.21 - 30.04.21 (1 months) | K106: As per FFR framework agreement | L106: 700 | M106: 1500 | N106: 8 | O106: 700 | P106: 1500 | Q106: 8 | R106: 700 | S106: 1500 | T106: 8 | U106: 12.5 | AC106: 0.4 | AD106: 1 | AE106: 1 | AF106: 0.4 | AG106: 1 | AH106: 0.4 | AI106: 1 | AP106: H for only 30min
A107: 135.101 | B107: Rejected | C107: 2 | D107: Social Energy Limited | E107: SOC9-FFR | F107: DNO connection | G107: DSF: Storage (onsite) | H107: 2021-04-01 | I107: 2021-04-30 | J107: 01.04.21 - 30.04.21 (1 months) | K107: As per FFR framework agreement | L107: 1500 | M107: 2300 | N107: 8 | O107: 1500 | P107: 2300 | Q107: 8 | R107: 1500 | S107: 2300 | T107: 8 | U107: 15.86 | AC107: 0.4 | AD107: 1 | AE107: 1 | AF107: 0.4 | AG107: 1 | AH107: 0.4 | AI107: 1 | AP107: H for only 30min
A108: 135.102 | B108: Rejected | C108: 2 | D108: Pelham Storage Limited | E108: PLHM-1 | F108: DNO connection | G108: DSF: Storage (for export) | H108: 2021-03-31 | I108: 2021-04-30 | J108: 31.03.21 - 30.04.21 (1 months) | K108: As per FFR framework agreement | L108: 2300 | M108: 700 | N108: =IF(L108>M108, (2400-L108+M108)/100, IF(AND(L108="",M108="",L108=M108), "", IF(L108=M108,24,(M108-L108)/100))) -> 8 | O108: 2300 | P108: 700 | Q108: =IF(O108>P108, (2400-O108+P108)/100, IF(AND(O108="",P108="",O108=P108), "", IF(O108=P108,24,(P108-O108)/100))) -> 8 | R108: 2300 | S108: 700 | T108: =IF(R108>S108, (2400-R108+S108)/100, IF(AND(R108="",S108="",R108=S108), "", IF(R108=S108,24,(S108-R108)/100))) -> 8 | U108: 477.12 | AC108: 19.2 | AD108: 48 | AE108: 48 | AF108: 19.2 | AG108: 48 | AH108: 19.2 | AI108: 48 | AL108: A
A109: 135.103 | B109: Rejected | C109: 2 | D109: Pelham Storage Limited | E109: PLHM-1 | F109: DNO connection | G109: DSF: Storage (for export) | H109: 2021-04-01 | I109: 2021-04-30 | J109: 01.04.21 - 30.04.21 (1 months) | K109: As per FFR framework agreement | L109: 700 | M109: 1500 | N109: =IF(L109>M109, (2400-L109+M109)/100, IF(AND(L109="",M109="",L109=M109), "", IF(L109=M109,24,(M109-L109)/100))) -> 8 | O109: 700 | P109: 1500 | Q109: =IF(O109>P109, (2400-O109+P109)/100, IF(AND(O109="",P109="",O109=P109), "", IF(O109=P109,24,(P109-O109)/100))) -> 8 | R109: 700 | S109: 1500 | T109: =IF(R109>S109, (2400-R109+S109)/100, IF(AND(R109="",S109="",R109=S109), "", IF(R109=S109,24,(S109-R109)/100))) -> 8 | U109: 566.4 | AC109: 19.2 | AD109: 48 | AE109: 48 | AF109: 19.2 | AG109: 48 | AH109: 19.2 | AI109: 48 | AL109: A
A110: 135.104 | B110: Rejected | C110: 2 | D110: Pelham Storage Limited | E110: PLHM-1 | F110: DNO connection | G110: DSF: Storage (for export) | H110: 2021-04-01 | I110: 2021-04-30 | J110: 01.04.21 - 30.04.21 (1 months) | K110: As per FFR framework agreement | L110: 1500 | M110: 2300 | N110: 8 | O110: 1500 | P110: 2300 | Q110: 8 | R110: 1500 | S110: 2300 | T110: 8 | U110: 794.4 | AC110: 19.2 | AD110: 48 | AE110: 48 | AF110: 19.2 | AG110: 48 | AH110: 19.2 | AI110: 48 | AL110: A
A111: 135.105 | B111: Accepted | C111: NA | D111: Statkraft Markets GmbH | E111: SKFT-1 | F111: DNO Connection | G111: DSF: Storage (for export) | H111: 2021-03-31 | I111: 2021-04-30 | J111: 31.03.21 - 30.04.21 (1 months) | K111: As per FFR framework agreement | L111: 2300 | M111: 700 | N111: =IF(L111>M111, (2400-L111+M111)/100, IF(AND(L111="",M111="",L111=M111), "", IF(L111=M111,24,(M111-L111)/100))) -> 8 | O111: 2300 | P111: 700 | Q111: =IF(O111>P111, (2400-O111+P111)/100, IF(AND(O111="",P111="",O111=P111), "", IF(O111=P111,24,(P111-O111)/100))) -> 8 | R111: 2300 | S111: 700 | T111: =IF(R111>S111, (2400-R111+S111)/100, IF(AND(R111="",S111="",R111=S111), "", IF(R111=S111,24,(S111-R111)/100))) -> 8 | U111: 64.5 | AC111: 2.4 | AD111: 6 | AE111: 6 | AF111: 2.4 | AG111: 6 | AH111: 2.4 | AI111: 6
A112: 135.106 | B112: Accepted | C112: NA | D112: Statkraft Markets GmbH | E112: SKFT-1 | F112: DNO Connection | G112: DSF: Storage (for export) | H112: 2021-04-01 | I112: 2021-04-30 | J112: 01.04.21 - 30.04.21 (1 months) | K112: As per FFR framework agreement | L112: 700 | M112: 1500 | N112: =IF(L112>M112, (2400-L112+M112)/100, IF(AND(L112="",M112="",L112=M112), "", IF(L112=M112,24,(M112-L112)/100))) -> 8 | O112: 700 | P112: 1500 | Q112: =IF(O112>P112, (2400-O112+P112)/100, IF(AND(O112="",P112="",O112=P112), "", IF(O112=P112,24,(P112-O112)/100))) -> 8 | R112: 700 | S112: 1500 | T112: =IF(R112>S112, (2400-R112+S112)/100, IF(AND(R112="",S112="",R112=S112), "", IF(R112=S112,24,(S112-R112)/100))) -> 8 | U112: 59.75 | AC112: 2 | AD112: 5 | AE112: 5 | AF112: 2 | AG112: 5 | AH112: 2 | AI112: 5
A113: 135.107 | B113: Rejected | C113: 2 | D113: Statkraft Markets GmbH | E113: SKFT-1 | F113: DNO Connection | G113: DSF: Storage (for export) | H113: 2021-04-01 | I113: 2021-04-30 | J113: 01.04.21 - 30.04.21 (1 months) | K113: As per FFR framework agreement | L113: 1500 | M113: 2300 | N113: 8 | O113: 1500 | P113: 2300 | Q113: 8 | R113: 1500 | S113: 2300 | T113: 8 | U113: 69.2 | AC113: 2 | AD113: 5 | AE113: 5 | AF113: 2 | AG113: 5 | AH113: 2 | AI113: 5
A114: 135.108 | B114: Rejected | C114: 2 | D114: UK Power Reserve Ltd | E114: AFFR1 | F114: DNO connection | G114: DSF: Storage (for export) | H114: 2021-03-31 | I114: 2021-04-30 | J114: 31.03.21 - 30.04.21 (1 months) | K114: As per FFR framework agreement | L114: 2300 | M114: 2300 | N114: 24 | O114: 2300 | P114: 2300 | Q114: 24 | R114: 2300 | S114: 2300 | T114: 24 | U114: 390 | AC114: 8 | AD114: 20 | AE114: 20 | AF114: 8 | AG114: 20 | AH114: 8 | AI114: 20
A115: 135.109 | B115: Rejected | C115: 2 | D115: UK Power Reserve Ltd | E115: AFFR2 | F115: DNO connection | G115: DSF: Storage (for export) | H115: 2021-03-31 | I115: 2021-04-30 | J115: 31.03.21 - 30.04.21 (1 months) | K115: As per FFR framework agreement | L115: 2300 | M115: 2300 | N115: 24 | O115: 2300 | P115: 2300 | Q115: 24 | R115: 2300 | S115: 2300 | T115: 24 | U115: 450 | AC115: 8 | AD115: 20 | AE115: 20 | AF115: 8 | AG115: 20 | AH115: 8 | AI115: 20
A116: 135.11 | B116: Rejected | C116: 2 | D116: UK Power Reserve Ltd | E116: AFFR3 | F116: DNO connection | G116: DSF: Storage (for export) | H116: 2021-03-31 | I116: 2021-04-30 | J116: 31.03.21 - 30.04.21 (1 months) | K116: As per FFR framework agreement | L116: 2300 | M116: 2300 | N116: 24 | O116: 2300 | P116: 2300 | Q116: 24 | R116: 2300 | S116: 2300 | T116: 24 | U116: 425 | AC116: 8 | AD116: 20 | AE116: 20 | AF116: 8 | AG116: 20 | AH116: 8 | AI116: 20
A117: 135.111 | B117: Accepted | C117: NA | D117: Upside Energy | E117: UPEN-2 | F117: DNO connection | G117: DSF: Storage (onsite) | H117: 2021-03-31 | I117: 2021-04-30 | J117: 31.03.21 - 30.04.21 (1 months) | K117: as per FFR framework agreement | L117: 2300 | M117: 1100 | N117: =IF(L117>M117, (2400-L117+M117)/100, IF(AND(L117="",M117="",L117=M117), "", IF(L117=M117,24,(M117-L117)/100))) -> 12 | O117: 2300 | P117: 1100 | Q117: =IF(O117>P117, (2400-O117+P117)/100, IF(AND(O117="",P117="",O117=P117), "", IF(O117=P117,24,(P117-O117)/100))) -> 12 | R117: 2300 | S117: 1100 | T117: =IF(R117>S117, (2400-R117+S117)/100, IF(AND(R117="",S117="",R117=S117), "", IF(R117=S117,24,(S117-R117)/100))) -> 12 | U117: 11.1 | AC117: 0.4 | AD117: 1 | AE117: 1 | AF117: 0.4 | AG117: 1 | AH117: 0.4 | AI117: 1
A118: 135.112 | B118: Accepted | C118: NA | D118: Upside Energy | E118: UPEN-1 | F118: DNO connection | G118: DSF: Storage (for export) | H118: 2021-03-31 | I118: 2021-04-30 | J118: 31.03.21 - 30.04.21 (1 months) | K118: as per FFR framework agreement | L118: 2300 | M118: 700 | N118: =IF(L118>M118, (2400-L118+M118)/100, IF(AND(L118="",M118="",L118=M118), "", IF(L118=M118,24,(M118-L118)/100))) -> 8 | O118: 2300 | P118: 700 | Q118: =IF(O118>P118, (2400-O118+P118)/100, IF(AND(O118="",P118="",O118=P118), "", IF(O118=P118,24,(P118-O118)/100))) -> 8 | R118: 2300 | S118: 700 | T118: =IF(R118>S118, (2400-R118+S118)/100, IF(AND(R118="",S118="",R118=S118), "", IF(R118=S118,24,(S118-R118)/100))) -> 8 | U118: 7.48 | AC118: 0.4 | AD118: 1 | AE118: 1 | AF118: 0.4 | AG118: 1 | AH118: 0 | AI118: 0
A119: 135.113 | B119: Rejected | C119: 2 | D119: BESS HoldCo 3 Ltd | E119: DBESSA-33 | F119: DNO connection | G119: Battery | H119: 2021-03-31 | I119: 2021-04-30 | J119: 31.03.21 - 30.04.21 (1 months) | K119: As per FFR framework agreement | L119: 2300 | M119: 2300 | N119: =IF(L119>M119,(2400-L119+M119)/100,IF(AND(L119="",M119="",L119=M119),"",IF(L119=M119,24,(M119-L119)/100))) -> 24 | O119: 2300 | P119: 2300 | Q119: =IF(O119>P119,(2400-O119+P119)/100,IF(AND(O119="",P119="",O119=P119),"",IF(O119=P119,24,(P119-O119)/100))) -> 24 | R119: 2300 | S119: 2300 | T119: =IF(R119>S119,(2400-R119+S119)/100,IF(AND(R119="",S119="",R119=S119),"",IF(R119=S119,24,(S119-R119)/100))) -> 24 | U119: 144 | AC119: 3.6 | AD119: 9 | AE119: 9 | AF119: 3.6 | AG119: 9 | AH119: 3.6 | AI119: 9 | AL119: A
A120: 135.114 | B120: Rejected | C120: 2 | D120: BESS HoldCo 3 Ltd | E120: DBESSC-33 | F120: DNO connection | G120: Battery | H120: 2021-03-31 | I120: 2021-04-30 | J120: =IFERROR(TEXT(H120,"DD.MM.YY")&" - "&TEXT(I120,"DD.MM.YY")&" ("&DATEDIF(H120,I120+1,"m")&" months)","Tender End Date is Before Start Date") -> 31.03.21 - 30.04.21 (1 months) | K120: As per FFR framework agreement | L120: 2300 | M120: 2300 | N120: =IF(L120>M120,(2400-L120+M120)/100,IF(AND(L120="",M120="",L120=M120),"",IF(L120=M120,24,(M120-L120)/100))) -> 24 | O120: 2300 | P120: 2300 | Q120: =IF(O120>P120,(2400-O120+P120)/100,IF(AND(O120="",P120="",O120=P120),"",IF(O120=P120,24,(P120-O120)/100))) -> 24 | R120: 2300 | S120: 2300 | T120: =IF(R120>S120,(2400-R120+S120)/100,IF(AND(R120="",S120="",R120=S120),"",IF(R120=S120,24,(S120-R120)/100))) -> 24 | U120: 160 | AC120: 4 | AD120: 10 | AE120: 10 | AF120: 4 | AG120: 10 | AH120: 4 | AI120: 10 | AL120: B
A121: 135.115 | B121: Rejected | C121: 2 | D121: BESS HoldCo 3 Ltd | E121: DBESSF-33 | F121: DNO connection | G121: Battery | H121: 2021-03-31 | I121: 2021-04-30 | J121: =IFERROR(TEXT(H121,"DD.MM.YY")&" - "&TEXT(I121,"DD.MM.YY")&" ("&DATEDIF(H121,I121+1,"m")&" months)","Tender End Date is Before Start Date") -> 31.03.21 - 30.04.21 (1 months) | K121: As per FFR framework agreement | L121: 2300 | M121: 2300 | N121: 24 | O121: 2300 | P121: 2300 | Q121: 24 | R121: 2300 | S121: 2300 | T121: 24 | U121: 160 | AC121: 4 | AD121: 10 | AE121: 10 | AF121: 4 | AG121: 10 | AH121: 4 | AI121: 10 | AL121: C
A122: 135.116 | B122: Rejected | C122: 2 | D122: BESS HoldCo 3 Ltd | E122: DBESSH-33 | F122: DNO connection | G122: Battery | H122: 2021-03-31 | I122: 2021-04-30 | J122: 31.03.21 - 30.04.21 (1 months) | K122: As per FFR framework agreement | L122: 2300 | M122: 2300 | N122: 24 | O122: 2300 | P122: 2300 | Q122: 24 | R122: 2300 | S122: 2300 | T122: 24 | U122: 160 | AC122: 4 | AD122: 10 | AE122: 10 | AF122: 4 | AG122: 10 | AH122: 4 | AI122: 10 | AL122: D
A123: 135.117 | B123: Rejected | C123: 2 | D123: BESS HoldCo 3 Ltd | E123: DBESSE-33 | F123: DNO connection | G123: Battery | H123: 2021-03-31 | I123: 2021-04-30 | J123: 31.03.21 - 30.04.21 (1 months) | K123: As per FFR framework agreement | L123: 2300 | M123: 2300 | N123: 24 | O123: 2300 | P123: 2300 | Q123: 24 | R123: 2300 | S123: 2300 | T123: 24 | U123: 160 | AC123: 4 | AD123: 10 | AE123: 10 | AF123: 4 | AG123: 10 | AH123: 4 | AI123: 10 | AL123: E
A124: 135.118 | B124: Rejected | C124: 2 | D124: BESS HoldCo 3 Ltd | E124: DBESSG-33 | F124: DNO connection | G124: Battery | H124: 2021-03-31 | I124: 2021-04-30 | J124: 31.03.21 - 30.04.21 (1 months) | K124: As per FFR framework agreement | L124: 2300 | M124: 2300 | N124: 24 | O124: 2300 | P124: 2300 | Q124: 24 | R124: 2300 | S124: 2300 | T124: 24 | U124: 160 | AC124: 4 | AD124: 10 | AE124: 10 | AF124: 4 | AG124: 10 | AH124: 4 | AI124: 10 | AL124: F
J125: 00.01.00 - 00.01.00 (0 months)
A126: Rejection Codes | B126: Code | D126: Reason | J126: 00.01.00 - 00.01.00 (0 months)
B127: 1 | C127: Beneficial | E127: 1.1 | F127: Req. satisifed by more beneficial bids | J127: 00.01.00 - 00.01.00 (0 months)
E128: 1.2 | F128: No outstanding req. | J128: 00.01.00 - 00.01.00 (0 months)
E129: 1.3 | F129: Desired procurement volume already met | J129: 00.01.00 - 00.01.00 (0 months)
E130: 1.4 | F130: Formed part of AON. Not collectively beneficial | J130: 00.01.00 - 00.01.00 (0 months)
B131: 2 | C131: Price not beneificial across tendered period | J131: 00.01.00 - 00.01.00 (0 months)
B132: 3 | C132: Does not meet tender prerequisites | J132: =IFERROR(TEXT(H132,"DD.MM.YY")&" - "&TEXT(I132,"DD.MM.YY")&" ("&DATEDIF(H132,I132+1,"m")&" months)","Tender End Date is Before Start Date") -> 00.01.00 - 00.01.00 (0 months)
B133: 4 | C133: Multiple tenders received for the same unit | J133: 00.01.00 - 00.01.00 (0 months)
B134: 5 | C134: Beyond desired procument volume | J134: 00.01.00 - 00.01.00 (0 months)
J135: 00.01.00 - 00.01.00 (0 months)
J136: 00.01.00 - 00.01.00 (0 months)
J137: 00.01.00 - 00.01.00 (0 months)
J138: 00.01.00 - 00.01.00 (0 months)
J139: 00.01.00 - 00.01.00 (0 months)
J140: 00.01.00 - 00.01.00 (0 months)
J141: 00.01.00 - 00.01.00 (0 months)
J142: 00.01.00 - 00.01.00 (0 months)
J143: 00.01.00 - 00.01.00 (0 months)
J144: 00.01.00 - 00.01.00 (0 months)
J145: 00.01.00 - 00.01.00 (0 months)
J146: 00.01.00 - 00.01.00 (0 months)
J147: 00.01.00 - 00.01.00 (0 months)
J148: 00.01.00 - 00.01.00 (0 months)
J149: 00.01.00 - 00.01.00 (0 months)
J150: 00.01.00 - 00.01.00 (0 months)
J151: 00.01.00 - 00.01.00 (0 months)
J152: 00.01.00 - 00.01.00 (0 months)
J153: 00.01.00 - 00.01.00 (0 months)
J154: 00.01.00 - 00.01.00 (0 months)
J155: 00.01.00 - 00.01.00 (0 months)
J156: 00.01.00 - 00.01.00 (0 months)
J157: 00.01.00 - 00.01.00 (0 months)
J158: 00.01.00 - 00.01.00 (0 months)
J159: 00.01.00 - 00.01.00 (0 months)
J160: 00.01.00 - 00.01.00 (0 months)
J161: 00.01.00 - 00.01.00 (0 months)
J162: 00.01.00 - 00.01.00 (0 months)
J163: 00.01.00 - 00.01.00 (0 months)
J164: 00.01.00 - 00.01.00 (0 months)
J165: 00.01.00 - 00.01.00 (0 months)
J166: 00.01.00 - 00.01.00 (0 months)
J167: 00.01.00 - 00.01.00 (0 months)
J168: 00.01.00 - 00.01.00 (0 months)
J169: 00.01.00 - 00.01.00 (0 months)
J170: 00.01.00 - 00.01.00 (0 months)
J171: 00.01.00 - 00.01.00 (0 months)
J172: 00.01.00 - 00.01.00 (0 months)
J173: 00.01.00 - 00.01.00 (0 months)
J174: 00.01.00 - 00.01.00 (0 months)
J175: 00.01.00 - 00.01.00 (0 months)
J176: 00.01.00 - 00.01.00 (0 months)
J177: 00.01.00 - 00.01.00 (0 months)
J178: 00.01.00 - 00.01.00 (0 months)
J179: 00.01.00 - 00.01.00 (0 months)
J180: 00.01.00 - 00.01.00 (0 months)
J181: 00.01.00 - 00.01.00 (0 months)
J182: 00.01.00 - 00.01.00 (0 months)
J183: 00.01.00 - 00.01.00 (0 months)
J184: 00.01.00 - 00.01.00 (0 months)
J185: 00.01.00 - 00.01.00 (0 months)
J186: 00.01.00 - 00.01.00 (0 months)
J187: 00.01.00 - 00.01.00 (0 months)
J188: 00.01.00 - 00.01.00 (0 months)
J189: 00.01.00 - 00.01.00 (0 months)
J190: 00.01.00 - 00.01.00 (0 months)
J191: 00.01.00 - 00.01.00 (0 months)
J192: 00.01.00 - 00.01.00 (0 months)
J193: 00.01.00 - 00.01.00 (0 months)
J194: 00.01.00 - 00.01.00 (0 months)
J195: 00.01.00 - 00.01.00 (0 months)
J196: =IFERROR(TEXT(H196,"DD.MM.YY")&" - "&TEXT(I196,"DD.MM.YY")&" ("&DATEDIF(H196,I196+1,"m")&" months)","Tender End Date is Before Start Date") -> 00.01.00 - 00.01.00 (0 months)
J197: 00.01.00 - 00.01.00 (0 months)
J198: 00.01.00 - 00.01.00 (0 months)
J199: 00.01.00 - 00.01.00 (0 months)
J200: 00.01.00 - 00.01.00 (0 months)
... 398 more rows
